{"text_format":"1","workbook":"xlsx","n_sheets":8,"sheets":["DSS 1st Quarter","DSS 2nd Quarter","DSS 3rd Quarter","DSS 4th Quarter","Annual","Annual Narrative Questions","Appendix","Values by Quarter"],"not_rendered":{"charts":0,"images":1,"macros":1,"external_links":0,"defined_names":0,"comments":0,"pivot_tables":0},"unopened":[],"bounds":{"document_bytes":16777216,"sheet_cells":100000,"rows_first":2000,"rows_last":500,"rows_between":2000,"halvings":0,"cell_chars":16384,"cell_head_chars":4096},"cells_cut":0,"cells_raw":0,"read":"whole","date_system":"1900"}

{"sheet":"DSS 1st Quarter","index":0,"n_rows":210,"n_cols":16,"rows_kept":210,"cut":false,"hidden":false,"merged":[[120,9,120,14],[141,4,141,8],[142,13,142,14],[143,9,143,14],[162,4,162,8],[163,13,163,14],[51,1,61,3],[62,1,64,3],[65,1,67,3],[68,1,69,3],[61,9,61,11],[62,9,62,11],[75,4,75,8],[77,4,77,8],[106,4,106,8],[107,13,107,14],[108,9,108,14],[118,4,118,8],[119,13,119,14],[78,4,78,8],[76,4,76,8],[69,4,69,8],[70,4,70,8],[72,4,72,8],[31,10,31,14],[58,4,58,8],[59,4,59,8],[40,8,40,9],[41,8,41,9],[37,8,37,9],[56,4,56,8],[57,4,57,8],[173,2,173,8],[104,1,104,8],[104,9,104,14],[105,2,105,8],[117,2,117,10],[107,2,107,8],[60,4,60,8],[56,9,56,11],[57,9,57,11],[71,9,71,11],[72,9,72,11],[73,9,73,11],[119,2,119,8],[142,2,142,8],[163,2,163,8],[60,9,60,11],[73,4,73,8],[74,4,74,8],[63,9,63,11],[65,4,65,8],[66,4,66,8],[67,4,67,8],[68,4,68,8],[65,9,65,11],[66,9,66,11],[67,9,67,11],[68,9,68,11],[209,0,209,11],[210,0,214,11],[12,4,12,9],[16,4,16,7],[28,8,28,9],[81,9,81,11],[83,4,83,8],[84,4,84,8],[85,4,85,8],[83,9,83,11],[84,9,84,11],[85,9,85,11],[74,9,74,11],[75,9,75,11],[76,9,76,11],[77,9,77,11],[78,9,78,11],[69,9,69,11],[70,9,70,11],[58,9,58,11],[59,9,59,11],[51,4,51,8],[52,4,52,8],[53,4,53,8],[54,4,54,8],[55,4,55,8],[51,9,51,11],[52,9,52,11],[53,9,53,11],[54,9,54,11],[55,9,55,11],[38,4,38,7],[39,4,39,7],[39,8,39,9],[46,4,50,8],[46,9,50,11],[45,1,45,9],[33,4,33,7],[29,8,29,9],[30,8,30,9],[32,8,32,9],[33,8,33,9],[30,4,30,7],[38,8,38,9],[31,4,31,9],[29,4,29,7],[36,8,36,9],[36,4,36,7],[32,4,32,7],[37,4,37,7],[20,4,20,7],[21,4,21,7],[22,4,22,7],[23,4,23,7],[24,4,24,7],[25,8,25,9],[25,4,25,7],[8,1,8,9],[14,1,14,5],[1,0,1,3],[1,4,1,9],[3,0,3,1],[3,2,3,3],[3,5,3,6],[3,7,3,9],[4,0,4,9],[5,1,5,9],[6,1,6,2],[203,0,203,7],[203,9,203,11],[141,2,141,3],[162,2,162,3],[172,2,172,3],[11,1,11,9],[62,4,62,8],[16,1,25,3],[15,1,15,3],[15,4,15,7],[15,8,15,9],[36,1,42,3],[16,8,16,9],[17,8,17,9],[18,8,18,9],[19,8,19,9],[20,8,20,9],[21,8,21,9],[22,8,22,9],[23,8,23,9],[24,8,24,9],[46,1,50,3],[61,4,61,8],[26,1,26,3],[0,0,0,5],[9,2,9,4],[206,0,206,1],[79,4,79,11],[204,0,204,7],[204,9,204,11],[86,4,86,8],[86,9,86,11],[87,4,87,8],[87,9,87,11],[88,4,88,8],[88,9,88,11],[89,4,89,8],[89,9,89,11],[90,4,90,8],[90,9,90,11],[91,4,91,11],[95,1,95,2],[106,2,106,3],[118,2,118,3],[196,3,196,8],[164,9,164,14],[172,4,172,8],[200,3,200,6],[173,13,173,14],[174,9,174,14],[198,3,198,6],[17,4,17,7],[45,10,45,11],[64,4,64,11],[83,1,91,3],[26,4,26,7],[26,8,26,9],[43,4,43,7],[43,8,43,9],[34,8,34,9],[34,4,34,7],[28,1,33,3],[71,4,71,8],[63,4,63,8],[81,1,81,8],[40,4,40,7],[41,4,41,7],[42,4,42,7],[42,8,42,9],[28,4,28,7],[18,4,18,7],[19,4,19,7]]}
[]
["Organization Name:"]
[]
["Contract #:",null,null,null,null,"Dates Reported:",null,"10/1-12/31"]
["POPULATION DEMOGRAPHICS"]
["1) ","Total number of individuals who received services during the reporting period."]
[]
[]
["2) ","Total number of anonymous contacts received during the reporting period?"]
[]
[]
["3) ","Number of New individuals who received services from your agency for the first time during the reporting period?"]
[]
[]
["4)","Demographics: The total number should equal :",null,null,null,null,{"$f":"$B$13","v":0}]
[null,"Category",null,null,"Population",null,null,null,"Number of NEW Individuals"]
[null,"RACE/ETHNICITY                                     (self-reported)",null,null,"American Indian/Alaskan Native"]
[null,null,null,null,"Asian"]
[null,null,null,null,"Black/African American"]
[null,null,null,null,"Hispanic or Latino"]
[null,null,null,null,"Native Hawaiian/Other Pacific Islander"]
[null,null,null,null,"White Non-Latino/Caucasian"]
[null,null,null,null,"Some Other Race"]
[null,null,null,null,"Multiple Races"]
[null,null,null,null,"Not Reported"]
[null,null,null,null,"Not Tracked"]
[null,null,null,null,"TOTAL (Equal to the # in #3)",null,null,null,{"$f":"SUM(I17:J26)","v":0}]
[]
[null,"GENDER IDENTITY                                 (self-reported)",null,null,"Male"]
[null,null,null,null,"Female"]
[null,null,null,null,"Other (briefly describe below)"]
[]
[null,null,null,null,"Not Reported"]
[null,null,null,null,"Not Tracked"]
[null,null,null,null,"TOTAL (Equal to the # in #3)",null,null,null,{"$f":"I29+I30+I31+I33+I34","v":0}]
[]
[null,"AGE                                                          (self-reported)",null,null,"0 - 12"]
[null,null,null,null,"13 -17"]
[null,null,null,null,"18 - 24"]
[null,null,null,null,"25 - 59"]
[null,null,null,null,"60 and older"]
[null,null,null,null,"Not Reported"]
[null,null,null,null,"Not Tracked"]
[null,null,null,null,"TOTAL (Equal to the # in #3)",null,null,null,{"$f":"SUM(I37:J43)","v":0}]
[]
["5)","TYPES OF VICTIMIZATIONS: The sum of Question 5A should be greater than or equal to the total of Question 1 and Question 2",null,null,null,null,null,null,null,null,{"$f":"SUM($B$7,$B$10)","v":0}]
[null,"Individuals who received services by type of victimization",null,null,"VICTIMIZATION TYPE",null,null,null,null,"A. Number of individuals who received services based on a presenting victimization during the reporting period."]
[]
[]
[]
[]
[null,"                                                                                                                                                    INSTRUCTIONS: Enter a count for each victimization type of individuals who received services based on the presenting victimization type(s) during the reporting period.",null,null,"Adult Physical Assault (includes Aggravated and Simple Assault)"]
[null,null,null,null,"Adult Sexual Assault"]
[null,null,null,null,"Adults Sexually Abused/Assaulted as Children"]
[null,null,null,null,"Arson"]
[null,null,null,null,"Bullying (Verbal, Cyber, or Physical)"]
[null,null,null,null,"Burglary"]
[null,null,null,null,"Child Physical Abuse or Neglect"]
[null,null,null,null,"Child Pornography"]
[null,null,null,null,"Child Sexual Abuse/Assault"]
[null,null,null,null,"Domestic and/or Family Violence"]
[null,null,null,null,"DUI/DWI Incidents"]
[null,"An individual may be counted in more than one victimization type.",null,null,"Elder Abuse or Neglect"]
[null,null,null,null,"Hate Crime: Racial/Religious/Sexual Orientation/Other (explain below)"]
[]
[null,"Do not count an individual more than once for the same victimization.",null,null,"Human Trafficking: Labor"]
[null,null,null,null,"Human Trafficking: Sex"]
[null,null,null,null,"Identity Theft/Fraud/Financial Crime"]
[null,"SEE APPENDIX FOR DEFINITIONS",null,null,"Kidnapping (non-custodial)"]
[null,null,null,null,"Kidnapping (parental/custodial)"]
[null,null,null,null,"Mass Violence (Domestic/International)"]
[null,null,null,null,"Other Vehicular Victimization (e.g., Hit and Run)"]
[null,null,null,null,"Robbery"]
[null,null,null,null,"Stalking/Harassment"]
[null,null,null,null,"Survivors of Homicide Victims"]
[null,null,null,null,"Teen Dating Victimization"]
[null,null,null,null,"Terrorism (Domestic/International)"]
[null,null,null,null,"Violation of a Court (Protective) Order"]
[null,null,null,null,"Other (explain below)"]
[]
[]
[null,"B. Of the number of individuals receiving services, the number who presented with more than one type of victimization during the reporting period."]
[]
[null,"C. Special classification of individuals",null,null,"Deaf/Hard of Hearing"]
[null,null,null,null,"Homeless"]
[null,null,null,null,"Immigrants/Refugees/ Asylum Seekers"]
[null,null,null,null,"LGBTQ"]
[null,null,null,null,"Veterans"]
[null,null,null,null,"Victim with Disabilities; Cognitive/Physical/ Mental"]
[null,null,null,null,"Victims with Limited English Proficiency"]
[null,null,null,null,"Other (explain below)"]
[]
[]
["DIRECT SERVICES"]
["6)","Number of individuals assisted with a victim compensation application during the reporting period."]
[]
[]
["7)","Select the types of services provided by your organization during the reporting period."]
[null,null,"A. Information and Referral"]
[null,null,"B. Personal Advocacy/Accompaniment"]
[null,null,"C. Emotional Support or Safety Services"]
[null,null,"D. Shelter/Housing Services"]
[null,null,"E. Criminal/Civil Justice System Assistance"]
[]
["8)","Total number of individuals who received services and occurrence by service type.",null,null,null,null,null,null,null,"(8A + 8B + 8C + 8D + 8E) Should be equal to or Greater than Question 1 + Question 2:",null,null,null,null,null,{"$f":"SUM($B$7,$B$10)","v":0}]
[null,"A. "," Information and Referral",null,null,null,null,null,null," "]
[null,null,null,null,"8A should be less than or equal to the sum of Question 1 + Question 2:",null,null,null,null,{"$f":"SUM($B$7,$B$10)","v":0}]
[null,null,"Enter the number of times a service was provided in each subcategory listed.",null,null,null,null,null,null,null,null,null,null,"A1-A4=",null,{"$f":"SUM($D$110,$D$112,$D$114,$D$117)","v":0}]
[null,null,"A1."," Information about the criminal justice process.",null,null,null,null,null,"The sum of A1-A4 should be equal to or greater than 8A:",null,null,null,null,null,{"$f":"$C$107","v":0}]
[]
[null,null,"A2.","Information about victim rights, how to obtain notifications, etc."]
[]
[null,null,"A3.","Referral to other victim service programs."]
[]
[null,null,"A4.","Referral to other services, supports, and resources."]
[null,null,null,"(includes legal, medical, faith-based organizations, address confidentiality programs, etc.)"]
[]
[null,"B. ","Personal Advocacy/Accompaniment "]
[null,null,null,null,"8B should be less than or equal to the sum of Question 1 + Question 2:",null,null,null,null,{"$f":"SUM($B$7,$B$10)","v":0}]
[null,null,"Enter the number of times a service was provided in each subcategory listed. ",null,null,null,null,null,null,null,null,null,null,"B1-B10=",null,{"$f":"SUM($D$122,$D$124,$D$126,$D$128,$D$130,$D$132,$D$134,$D$136,$D$138,$D$140)","v":0}]
[null,null,"B1.","Victim advocacy/accompaniment to emergency medical care.",null,null,null,null,null," (The sum of B1-B10 should be equal to or greater than 8B):",null,null,null,null,null,{"$f":"$C$119","v":0}]
[]
[null,null,"B2.","Victim advocacy/accompaniment to medical forensic exam."]
[]
[null,null,"B3.","Law enforcement interview advocacy/accompaniment."]
[]
[null,null,"B4.","Individual Advocacy  (assistance in applying for public benefits, return of personal property or effects)"]
[]
[null,null,"B5.","Performance of medical forensic exam or interview, or medical evidence collection."]
[]
[null,null,"B6.","Immigration assistance  (e.g., special visas, certified presence application, other immigration relief)."]
[]
[null,null,"B7.","Intervention with employer, creditor, landlord, or academic institution."]
[]
[null,null,"B8.","Child or dependent care assistance (provided by agency)."]
[]
[null,null,"B9.","Transportation assistance (provided by agency)."]
[]
[null,null,"B10.","Interpreter services (provided by agency)."]
[]
[null,"C. ","Emotional Support or Safety Services"]
[null,null,null,null,"8C should be less than or equal to the sum of Question 1 + Question 2:",null,null,null,null,{"$f":"SUM($B$7,$B$10)","v":0}]
[null,null,"Enter the number of times a service was provided in each subcategory listed. ",null,null,null,null,null,null,null,null,null,null,"C1-C7=",null,{"$f":"SUM($D$145,$D$147,$D$149,$D$151,$D$154,$D$156,$D$160)","v":0}]
[null,null,"C1.","Crisis Intervention (in-person, includes safety planning, etc.)",null,null,null,null,null,"(The sum of C1-C7 should be equal to or greater than 8C):",null,null,null,null,null,{"$f":"$C$142","v":0}]
[]
[null,null,"C2.","Hotline/crisis line counseling."]
[]
[null,null,"C3.","On-scene crisis response (e.g., community crisis response)."]
[]
[null,null,"C4.","Individual Counseling."]
[]
[null,null,"C5.","Support groups."]
[null,null,null,"(facilitated or peer)"]
[]
[null,null,"C6.","Other therapy."]
[]
[null,null,"C7.","Emergency financial assistance."]
[null,null,null,"(includes emergency loans and petty cash, payment for items such as food and/or clothing, changing windows"]
[null,null,null,"and/or locks, taxis, prophylactic and nonprophylactic meds, durable medical equipment, etc.)"]
[]
[]
[null,"D. ","Shelter/Housing Services "]
[null,null,null,null,"8D should be less than or equal to the sum of Question 1 + Question 2:",null,null,null,null,{"$f":"SUM($B$7,$B$10)","v":0}]
[null,null,"Enter the number of times a service was provided in each subcategory listed.",null,null,null,null,null,null,null,null,null,null,"D1-D3=",null,{"$f":"SUM($D$166,$D$168,$D$170)","v":0}]
[null,null,"D1.","Emergency shelter or safe house.",null,null,null,null,null,"The sum of D1-D3 should be equal to or greater than 8D:",null,null,null,null,null,{"$f":"$C$163","v":0}]
[]
[null,null,"D2.","Transitional housing."]
[]
[null,null,"D3.","Relocation assistance (includes assistance with obtaining housing)."]
[]
[]
[null,"E. ","Criminal/Civil Justice System Assistance "]
[null,null,null,null,"8E should be less than or equal to the sum of Question 1 + Question 2:",null,null,null,null,{"$f":"SUM($B$7,$B$10)","v":0}]
[null,null,"Enter the number of times a service was provided in each subcategory listed.",null,null,null,null,null,null,null,null,null,null,"E1-E11=",null,{"$f":"SUM($D$177,$D$179,$D$182,$D$184,$D$187,$D$190,$D$193,$D$196,$D$198,$D$200,$D$202)","v":0}]
[null,null,"E1.","Notification of criminal justice events.",null,null,null,null,null,"The sum of E1-E11 should be equal to or greater than 8E:",null,null,null,null,null,{"$f":"$C$173","v":0}]
[null,null,null,"(e.g., case status, arrest, court proceedings, case disposition, release, etc.)"]
[]
[null,null,"E2.","Victim impact statement assistance."]
[]
[null,null,"E3.","Assistance with restitution."]
[null,null,null,"(includes assistance in requesting and when collection efforts are unsuccessful)"]
[]
[null,null,"E4.","Civil legal assistance in obtaining protection or restraining order."]
[]
[null,null,"E5.","Civil legal assistance with family law issues."]
[null,null,null,"(e.g., custody, visitation, or support)"]
[]
[null,null,"E6.","Other emergency justice-related assistance."]
[null,null,null,"(e.g., custody, visitation, or support)"]
[]
[null,null,"E7.","Immigration assistance."]
[null,null,null,"(e.g., special visas, continued presence application, and other immigration relief)"]
[]
[null,null,"E8.","Prosecution interview advocacy/accompaniment."]
[null,null,null,"(includes accompaniment with prosecuting attorney and with victim/witness.)"]
[]
[null,null,"E9.","Law enforcement interview advocacy/accompaniment."]
[]
[null,null,"E10.","Criminal advocacy/accompaniment."]
[]
[null,null,"E11.","Other legal advice and/or counsel."]
[]
[]
[]
["Signature of Authorized or Acting Authorized Official",null,null,null,null,null,null,null,null,"Date"]
[]
["Revised 11/14/2023"]
[]
[]
["Additional Comments within this reporting period  "]

{"sheet":"DSS 2nd Quarter","index":1,"n_rows":210,"n_cols":16,"rows_kept":210,"cut":false,"hidden":false,"merged":[[64,1,66,3],[67,1,69,3],[70,1,71,3],[4,0,4,9],[5,1,5,9],[6,1,6,2],[8,1,8,9],[9,2,9,4],[11,1,11,9],[19,4,19,7],[19,8,19,9],[20,4,20,7],[20,8,20,9],[26,1,26,3],[26,4,26,7],[26,8,26,9],[21,8,21,9],[22,4,22,7],[22,8,22,9],[23,4,23,7],[23,8,23,9],[40,8,40,9],[41,4,41,7],[41,8,41,9],[0,0,0,5],[1,0,1,3],[1,4,1,9],[3,0,3,1],[3,2,3,3],[3,5,3,6],[3,7,3,9],[18,4,18,7],[18,8,18,9],[12,4,12,9],[14,1,14,5],[15,1,15,3],[15,4,15,7],[15,8,15,9],[16,1,25,3],[16,4,16,7],[16,8,16,9],[17,4,17,7],[17,8,17,9],[24,4,24,7],[24,8,24,9],[25,4,25,7],[25,8,25,9],[21,4,21,7],[31,10,31,14],[32,4,32,7],[32,8,32,9],[33,4,33,7],[33,8,33,9],[34,4,34,7],[34,8,34,9],[28,1,33,3],[28,4,28,7],[28,8,28,9],[29,4,29,7],[29,8,29,9],[30,4,30,7],[30,8,30,9],[31,4,31,9],[42,4,42,7],[42,8,42,9],[43,4,43,7],[43,8,43,9],[36,1,42,3],[36,4,36,7],[36,8,36,9],[37,4,37,7],[37,8,37,9],[38,4,38,7],[38,8,38,9],[39,4,39,7],[39,8,39,9],[40,4,40,7],[45,1,45,9],[45,10,45,11],[46,1,50,3],[46,4,50,8],[46,9,50,11],[51,4,51,8],[51,9,51,11],[52,4,52,8],[52,9,52,11],[51,1,63,3],[56,4,56,8],[56,9,56,11],[57,4,57,8],[57,9,57,11],[58,4,58,8],[58,9,58,11],[53,4,53,8],[53,9,53,11],[54,4,54,8],[54,9,54,11],[55,4,55,8],[55,9,55,11],[62,4,62,8],[62,9,62,11],[63,4,63,8],[63,9,63,11],[64,4,64,11],[65,4,65,8],[65,9,65,11],[59,4,59,8],[59,9,59,11],[60,4,60,8],[60,9,60,11],[61,4,61,8],[61,9,61,11],[69,4,69,8],[69,9,69,11],[70,4,70,8],[70,9,70,11],[71,4,71,8],[71,9,71,11],[66,4,66,8],[66,9,66,11],[67,4,67,8],[67,9,67,11],[68,4,68,8],[68,9,68,11],[75,4,75,8],[75,9,75,11],[76,4,76,8],[76,9,76,11],[77,4,77,8],[77,9,77,11],[72,4,72,8],[72,9,72,11],[73,4,73,8],[73,9,73,11],[74,4,74,8],[74,9,74,11],[85,4,85,8],[85,9,85,11],[86,4,86,8],[86,9,86,11],[87,4,87,8],[87,9,87,11],[78,4,78,8],[78,9,78,11],[79,4,79,11],[81,1,81,8],[81,9,81,11],[83,1,91,3],[83,4,83,8],[83,9,83,11],[84,4,84,8],[84,9,84,11],[91,4,91,11],[95,1,95,2],[104,1,104,8],[104,9,104,14],[105,2,105,8],[106,2,106,3],[106,4,106,8],[88,4,88,8],[88,9,88,11],[89,4,89,8],[89,9,89,11],[90,4,90,8],[90,9,90,11],[119,2,119,8],[119,13,119,14],[120,9,120,14],[141,2,141,3],[141,4,141,8],[142,2,142,8],[142,13,142,14],[107,2,107,8],[107,13,107,14],[108,9,108,14],[117,2,117,10],[118,2,118,3],[118,4,118,8],[172,2,172,3],[172,4,172,8],[173,2,173,8],[173,13,173,14],[174,9,174,14],[196,3,196,8],[143,9,143,14],[162,2,162,3],[162,4,162,8],[163,2,163,8],[163,13,163,14],[164,9,164,14],[206,0,206,1],[209,0,209,11],[210,0,214,11],[198,3,198,6],[200,3,200,6],[203,0,203,7],[203,9,203,11],[204,0,204,7],[204,9,204,11]]}
[]
["Organization Name:",null,null,null,{"$f":"'DSS 1st Quarter'!E2:J2","v":0}]
[]
["Contract #:",null,{"$f":"'DSS 1st Quarter'!C4:D4","v":0},null,null,"Dates Reported:",null,"1/1-3/31"]
["POPULATION DEMOGRAPHICS"]
["1) ","Total number of individuals who received services during the reporting period."]
[]
[]
["2) ","Total number of anonymous contacts received during the reporting period?"]
[]
[]
["3) ","Number of New individuals who received services from your agency for the first time during the reporting period?"]
[]
[]
["4)","Demographics: The total number should equal:",null,null,null,null,{"$f":"$B$13","v":0}]
[null,"Category",null,null,"Population",null,null,null,"Number of NEW Individuals"]
[null,"RACE/ETHNICITY                                     (self-reported)",null,null,"American Indian/Alaskan Native"]
[null,null,null,null,"Asian"]
[null,null,null,null,"Black/African American"]
[null,null,null,null,"Hispanic or Latino"]
[null,null,null,null,"Native Hawaiian/Other Pacific Islander"]
[null,null,null,null,"White Non-Latino/Caucasian"]
[null,null,null,null,"Some Other Race"]
[null,null,null,null,"Multiple Races"]
[null,null,null,null,"Not Reported"]
[null,null,null,null,"Not Tracked"]
[null,null,null,null,"TOTAL (Equal to the # in #3)",null,null,null,{"$f":"SUM(I17:J26)","v":0}]
[]
[null,"GENDER IDENTITY                                 (self-reported)",null,null,"Male"]
[null,null,null,null,"Female"]
[null,null,null,null,"Other (briefly describe below)"]
[]
[null,null,null,null,"Not Reported"]
[null,null,null,null,"Not Tracked"]
[null,null,null,null,"TOTAL (Equal to the # in #3)",null,null,null,{"$f":"I29+I30+I31+I33+I34","v":0}]
[]
[null,"AGE                                                          (self-reported)",null,null,"0 - 12"]
[null,null,null,null,"13 -17"]
[null,null,null,null,"18 - 24"]
[null,null,null,null,"25 - 59"]
[null,null,null,null,"60 and older"]
[null,null,null,null,"Not Reported"]
[null,null,null,null,"Not Tracked"]
[null,null,null,null,"TOTAL (Equal to the # in #3)",null,null,null,{"$f":"SUM(I37:J43)","v":0}]
[]
["5)","TYPES OF VICTIMIZATIONS: The sum of Question 5A should be greater than or equal to the total of Question 1 and Question 2",null,null,null,null,null,null,null,null,{"$f":"SUM($B$7,$B$10)","v":0}]
[null,"Individuals who received services by type of victimization",null,null,"VICTIMIZATION TYPE",null,null,null,null,"A. Number of individuals who received services based on a presenting victimization during the reporting period"]
[]
[]
[]
[]
[null,"                                                                                          INSTRUCTIONS: Enter a count for each victimization type of individuals who received services based on the presenting victimization type(s) during the reporting period.",null,null,"Adult Physical Assault (includes Aggravated and Simple Assault)"]
[null,null,null,null,"Adult Sexual Assault"]
[null,null,null,null,"Adults Sexually Abused/Assaulted as Children"]
[null,null,null,null,"Arson"]
[null,null,null,null,"Bullying (Verbal, Cyber, or Physical)"]
[null,null,null,null,"Burglary"]
[null,null,null,null,"Child Physical Abuse or Neglect"]
[null,null,null,null,"Child Pornography"]
[null,null,null,null,"Child Sexual Abuse/Assault"]
[null,null,null,null,"Domestic and/or Family Violence"]
[null,null,null,null,"DUI/DWI Incidents"]
[null,null,null,null,"Elder Abuse or Neglect"]
[null,null,null,null,"Hate Crime: Racial/Religious/Sexual Orientation/Other (explain below)"]
[null,"An individual may be counted in more than one victimization type."]
[null,null,null,null,"Human Trafficking: Labor"]
[null,null,null,null,"Human Trafficking: Sex"]
[null,"Do not count an individual more than once for the same victimization.",null,null,"Identity Theft/Fraud/Financial Crime"]
[null,null,null,null,"Kidnapping (non-custodial)"]
[null,null,null,null,"Kidnapping (parental/custodial)"]
[null,"SEE APPENDIX FOR DEFINITIONS",null,null,"Mass Violence (Domestic/International)"]
[null,null,null,null,"Other Vehicular Victimization (e.g., Hit and Run)"]
[null,null,null,null,"Robbery"]
[null,null,null,null,"Stalking/Harassment"]
[null,null,null,null,"Survivors of Homicide Victims"]
[null,null,null,null,"Teen Dating Victimization"]
[null,null,null,null,"Terrorism (Domestic/International)"]
[null,null,null,null,"Violation of a Court (Protective) Order"]
[null,null,null,null,"Other (explain below)"]
[]
[]
[null,"B. Of the number of individuals receiving services, the number who presented with more than one type of victimization during the reporting period"]
[]
[null,"C. Special classification of individuals",null,null,"Deaf/Hard of Hearing"]
[null,null,null,null,"Homeless"]
[null,null,null,null,"Immigrants/Refugees/ Asylum Seekers"]
[null,null,null,null,"LGBTQ"]
[null,null,null,null,"Veterans"]
[null,null,null,null,"Victim with Disabilities; Cognitive/Physical/ Mental"]
[null,null,null,null,"Victims with Limited English Proficiency"]
[null,null,null,null,"Other (explain below)"]
[]
[]
["DIRECT SERVICES"]
["6)","Number of individuals assisted with a victim compensation application during the reporting period."]
[]
[]
["7)","Select the types of services provided by your organization during the reporting period."]
[null,null,"A. Information and Referral"]
[null,null,"B. Personal Advocacy/Accompaniment"]
[null,null,"C. Emotional Support or Safety Services"]
[null,null,"D. Shelter/Housing Services"]
[null,null,"E. Criminal/Civil Justice System Assistance"]
[]
["8)","Total number of individuals who received services and occurrence by service type.",null,null,null,null,null,null,null,"(8A + 8B + 8C + 8D + 8E) Should be equal to or Greater than Question 1 + Question 2:",null,null,null,null,null,{"$f":"SUM($B$7,$B$10)","v":0}]
[null,"A. "," Information and Referral",null,null,null,null,null,null," "]
[null,null,null,null,"8A should be less than or equal to the sum of Question 1 + Question 2:",null,null,null,null,{"$f":"SUM($B$7,$B$10)","v":0}]
[null,null,"Enter the number of times a service was provided in each subcategory listed.",null,null,null,null,null,null,null,null,null,null,"A1-A4=",null,{"$f":"SUM($D$110,$D$112,$D$114,$D$117)","v":0}]
[null,null,"A1."," Information about the criminal justice process",null,null,null,null,null,"The sum of A1-A4 should be equal to or greater than 8A:",null,null,null,null,null,{"$f":"$C$107","v":0}]
[]
[null,null,"A2.","Information about victim rights, how to obtain notifications, etc."]
[]
[null,null,"A3.","Referral to other victim service programs"]
[]
[null,null,"A4.","Referral to other services, supports, and resources"]
[null,null,null,"(includes legal, medical, faith-based organizations, address confidentiality programs, etc.)"]
[]
[null,"B. ","Personal Advocacy/Accompaniment "]
[null,null,null,null,"8B should be less than or equal to the sum of Question 1 + Question 2:",null,null,null,null,{"$f":"SUM($B$7,$B$10)","v":0}]
[null,null,"Enter the number of times a service was provided in each subcategory listed. ",null,null,null,null,null,null,null,null,null,null,"B1-B10=",null,{"$f":"SUM($D$122,$D$124,$D$126,$D$128,$D$130,$D$132,$D$134,$D$136,$D$138,$D$140)","v":0}]
[null,null,"B1.","Victim advocacy/accompaniment to emergency medical care",null,null,null,null,null," (The sum of B1-B10 should be equal to or greater than 8B):",null,null,null,null,null,{"$f":"$C$119","v":0}]
[]
[null,null,"B2.","Victim advocacy/accompaniment to medical forensic exam"]
[]
[null,null,"B3.","Law enforcement interview advocacy/accompaniment"]
[]
[null,null,"B4.","Individual Advocacy  (assistance in applying for public benefits, return of personal property or effects)"]
[]
[null,null,"B5.","Performance of medical forensic exam or interview, or medical evidence collection"]
[]
[null,null,"B6.","Immigration assistance  (e.g., special visas, certified presence application, other immigration relief)"]
[]
[null,null,"B7.","Intervention with employer, creditor, landlord, or academic institution"]
[]
[null,null,"B8.","Child or dependent care assistance (provided by agency)"]
[]
[null,null,"B9.","Transportation assistance (provided by agency)"]
[]
[null,null,"B10.","Interpreter services (provided by agency)"]
[]
[null,"C. ","Emotional Support or Safety Services"]
[null,null,null,null,"8C should be less than or equal to the sum of Question 1 + Question 2:",null,null,null,null,{"$f":"SUM($B$7,$B$10)","v":0}]
[null,null,"Enter the number of times a service was provided in each subcategory listed. ",null,null,null,null,null,null,null,null,null,null,"C1-C7=",null,{"$f":"SUM($D$145,$D$147,$D$149,$D$151,$D$154,$D$156,$D$160)","v":0}]
[null,null,"C1.","Crisis Intervention (in-person, includes safety planning, etc.)",null,null,null,null,null,"(The sum of C1-C7 should be equal to or greater than 8C):",null,null,null,null,null,{"$f":"$C$142","v":0}]
[]
[null,null,"C2.","Hotline/crisis line counseling"]
[]
[null,null,"C3.","On-scene crisis response (e.g., community crisis response)"]
[]
[null,null,"C4.","Individual Counseling"]
[]
[null,null,"C5.","Support groups "]
[null,null,null,"(facilitated or peer)"]
[]
[null,null,"C6.","Other therapy"]
[]
[null,null,"C7.","Emergency financial assistance"]
[null,null,null,"(includes emergency loans and petty cash, payment for items such as food and/or clothing, changing windows"]
[null,null,null,"and/or locks, taxis, prophylactic and nonprophylactic meds, durable medical equipment, etc.)"]
[]
[]
[null,"D. ","Shelter/Housing Services "]
[null,null,null,null,"8D should be less than or equal to the sum of Question 1 + Question 2:",null,null,null,null,{"$f":"SUM($B$7,$B$10)","v":0}]
[null,null,"Enter the number of times a service was provided in each subcategory listed.",null,null,null,null,null,null,null,null,null,null,"D1-D3=",null,{"$f":"SUM($D$166,$D$168,$D$170)","v":0}]
[null,null,"D1.","Emergency shelter or safe house",null,null,null,null,null,"The sum of D1-D3 should be equal to or greater than 8D:",null,null,null,null,null,{"$f":"$C$163","v":0}]
[]
[null,null,"D2.","Transitional housing"]
[]
[null,null,"D3.","Relocation assistance (includes assistance with obtaining housing)"]
[]
[]
[null,"E. ","Criminal/Civil Justice System Assistance "]
[null,null,null,null,"8E should be less than or equal to the sum of Question 1 + Question 2:",null,null,null,null,{"$f":"SUM($B$7,$B$10)","v":0}]
[null,null,"Enter the number of times a service was provided in each subcategory listed.",null,null,null,null,null,null,null,null,null,null,"E1-E11=",null,{"$f":"SUM($D$177,$D$179,$D$182,$D$184,$D$187,$D$190,$D$193,$D$196,$D$198,$D$200,$D$202)","v":0}]
[null,null,"E1.","Notification of criminal justice events",null,null,null,null,null,"The sum of E1-E11 should be equal to or greater than 8E:",null,null,null,null,null,{"$f":"$C$173","v":0}]
[null,null,null,"(e.g., case status, arrest, court proceedings, case disposition, release, etc.)"]
[]
[null,null,"E2.","Victim impact statement assistance"]
[]
[null,null,"E3.","Assistance with restitution"]
[null,null,null,"(includes assistance in requesting and when collection efforts are unsuccessful)"]
[]
[null,null,"E4.","Civil legal assistance in obtaining protection or restraining order"]
[]
[null,null,"E5.","Civil legal assistance with family law issues "]
[null,null,null,"(e.g., custody, visitation, or support)"]
[]
[null,null,"E6.","Other emergency justice-related assistance"]
[null,null,null,"(e.g., custody, visitation, or support)"]
[]
[null,null,"E7.","Immigration assistance"]
[null,null,null,"(e.g., special visas, continued presence application, and other immigration relief)"]
[]
[null,null,"E8.","Prosecution interview advocacy/accompaniment"]
[null,null,null,"(includes accompaniment with prosecuting attorney and with victim/witness)"]
[]
[null,null,"E9.","Law enforcement interview advocacy/accompaniment"]
[]
[null,null,"E10.","Criminal advocacy/accompaniment"]
[]
[null,null,"E11.","Other legal advice and/or counsel"]
[]
[]
[]
["Signature of Authorized or Acting Authorized Official",null,null,null,null,null,null,null,null,"Date"]
[]
["Revised 11/14/2023"]
[]
[]
["Additional Comments within this reporting period  "]

{"sheet":"DSS 3rd Quarter","index":2,"n_rows":210,"n_cols":16,"rows_kept":210,"cut":false,"hidden":false,"merged":[[75,1,77,3],[78,1,79,3],[51,1,63,3],[64,1,66,3],[67,1,69,3],[70,1,71,3],[72,1,74,3],[4,0,4,9],[5,1,5,9],[6,1,6,2],[8,1,8,9],[9,2,9,4],[11,1,11,9],[19,4,19,7],[19,8,19,9],[20,4,20,7],[20,8,20,9],[26,1,26,3],[26,4,26,7],[26,8,26,9],[21,8,21,9],[22,4,22,7],[22,8,22,9],[23,4,23,7],[0,0,0,5],[1,0,1,3],[1,4,1,9],[3,0,3,1],[3,2,3,3],[3,5,3,6],[3,7,3,9],[18,4,18,7],[18,8,18,9],[12,4,12,9],[14,1,14,5],[15,1,15,3],[15,4,15,7],[15,8,15,9],[16,1,25,3],[16,4,16,7],[16,8,16,9],[17,4,17,7],[17,8,17,9],[24,4,24,7],[24,8,24,9],[25,4,25,7],[25,8,25,9],[21,4,21,7],[23,8,23,9],[31,10,31,14],[32,4,32,7],[32,8,32,9],[33,4,33,7],[33,8,33,9],[34,4,34,7],[34,8,34,9],[28,1,33,3],[28,4,28,7],[28,8,28,9],[29,4,29,7],[29,8,29,9],[30,4,30,7],[30,8,30,9],[31,4,31,9],[40,8,40,9],[41,4,41,7],[41,8,41,9],[42,4,42,7],[42,8,42,9],[43,4,43,7],[43,8,43,9],[36,1,42,3],[36,4,36,7],[36,8,36,9],[37,4,37,7],[37,8,37,9],[38,4,38,7],[38,8,38,9],[39,4,39,7],[39,8,39,9],[40,4,40,7],[45,1,45,9],[45,10,45,11],[46,1,50,3],[46,4,50,8],[46,9,50,11],[51,4,51,8],[51,9,51,11],[52,4,52,8],[52,9,52,11],[56,4,56,8],[56,9,56,11],[57,4,57,8],[57,9,57,11],[58,4,58,8],[58,9,58,11],[53,4,53,8],[53,9,53,11],[54,4,54,8],[54,9,54,11],[55,4,55,8],[55,9,55,11],[62,4,62,8],[62,9,62,11],[63,4,63,8],[63,9,63,11],[64,4,64,11],[65,4,65,8],[65,9,65,11],[59,4,59,8],[59,9,59,11],[60,4,60,8],[60,9,60,11],[61,4,61,8],[61,9,61,11],[69,4,69,8],[69,9,69,11],[70,4,70,8],[70,9,70,11],[71,4,71,8],[71,9,71,11],[66,4,66,8],[66,9,66,11],[67,4,67,8],[67,9,67,11],[68,4,68,8],[68,9,68,11],[75,4,75,8],[75,9,75,11],[76,4,76,8],[76,9,76,11],[77,4,77,8],[77,9,77,11],[72,4,72,8],[72,9,72,11],[73,4,73,8],[73,9,73,11],[74,4,74,8],[74,9,74,11],[85,4,85,8],[85,9,85,11],[86,4,86,8],[86,9,86,11],[87,4,87,8],[87,9,87,11],[78,4,78,8],[78,9,78,11],[79,4,79,11],[81,1,81,8],[81,9,81,11],[83,1,91,3],[83,4,83,8],[83,9,83,11],[84,4,84,8],[84,9,84,11],[91,4,91,11],[95,1,95,2],[104,1,104,8],[104,9,104,14],[105,2,105,8],[106,2,106,3],[106,4,106,8],[88,4,88,8],[88,9,88,11],[89,4,89,8],[89,9,89,11],[90,4,90,8],[90,9,90,11],[119,2,119,8],[119,13,119,14],[120,9,120,14],[141,2,141,3],[141,4,141,8],[142,2,142,8],[142,13,142,14],[107,2,107,8],[107,13,107,14],[108,9,108,14],[117,2,117,10],[118,2,118,3],[118,4,118,8],[172,2,172,3],[172,4,172,8],[173,2,173,8],[173,13,173,14],[174,9,174,14],[196,3,196,8],[143,9,143,14],[162,2,162,3],[162,4,162,8],[163,2,163,8],[163,13,163,14],[164,9,164,14],[206,0,206,1],[209,0,209,11],[210,0,214,11],[198,3,198,6],[200,3,200,6],[203,0,203,7],[203,9,203,11],[204,0,204,7],[204,9,204,11]]}
[]
["Organization Name:",null,null,null,{"$f":"'DSS 1st Quarter'!E2:J2","v":0}]
[]
["Contract #:",null,{"$f":"'DSS 1st Quarter'!C4:D4","v":0},null,null,"Dates Reported:",null,"4/1-6/30"]
["POPULATION DEMOGRAPHICS"]
["1) ","Total number of individuals who received services during the reporting period."]
[]
[]
["2) ","Total number of anonymous contacts received during the reporting period?"]
[]
[]
["3) ","Number of New individuals who received services from your agency for the first time during the reporting period?"]
[]
[]
["4)","Demographics: The total number should equal:",null,null,null,null,{"$f":"$B$13","v":0}]
[null,"Category",null,null,"Population",null,null,null,"Number of NEW Individuals"]
[null,"RACE/ETHNICITY                                     (self-reported)",null,null,"American Indian/Alaskan Native"]
[null,null,null,null,"Asian"]
[null,null,null,null,"Black/African American"]
[null,null,null,null,"Hispanic or Latino"]
[null,null,null,null,"Native Hawaiian/Other Pacific Islander"]
[null,null,null,null,"White Non-Latino/Caucasian"]
[null,null,null,null,"Some Other Race"]
[null,null,null,null,"Multiple Races"]
[null,null,null,null,"Not Reported"]
[null,null,null,null,"Not Tracked"]
[null,null,null,null,"TOTAL (Equal to the # in #3)",null,null,null,{"$f":"SUM(I17:J26)","v":0}]
[]
[null,"GENDER IDENTITY                                 (self-reported)",null,null,"Male"]
[null,null,null,null,"Female"]
[null,null,null,null,"Other (briefly describe below)"]
[]
[null,null,null,null,"Not Reported"]
[null,null,null,null,"Not Tracked"]
[null,null,null,null,"TOTAL (Equal to the # in #3)",null,null,null,{"$f":"I29+I30+I31+I33+I34","v":0}]
[]
[null,"AGE                                                          (self-reported)",null,null,"0 - 12"]
[null,null,null,null,"13 -17"]
[null,null,null,null,"18 - 24"]
[null,null,null,null,"25 - 59"]
[null,null,null,null,"60 and older"]
[null,null,null,null,"Not Reported"]
[null,null,null,null,"Not Tracked"]
[null,null,null,null,"TOTAL (Equal to the # in #3)",null,null,null,{"$f":"SUM(I37:J43)","v":0}]
[]
["5)","TYPES OF VICTIMIZATIONS: The sum of Question 5A should be greater than or equal to the total of Question 1 and Question 2:",null,null,null,null,null,null,null,null,{"$f":"SUM($B$7,$B$10)","v":0}]
[null,"Individuals who received services by type of victimization",null,null,"VICTIMIZATION TYPE",null,null,null,null,"A. Number of individuals who received services based on a presenting victimization during the reporting period"]
[]
[]
[]
[]
[null,"                                                                                          INSTRUCTIONS: Enter a count for each victimization type of individuals who received services based on the presenting victimization type(s) during the reporting period.",null,null,"Adult Physical Assault (includes Aggravated and Simple Assault)"]
[null,null,null,null,"Adult Sexual Assault"]
[null,null,null,null,"Adults Sexually Abused/Assaulted as Children"]
[null,null,null,null,"Arson"]
[null,null,null,null,"Bullying (Verbal, Cyber, or Physical)"]
[null,null,null,null,"Burglary"]
[null,null,null,null,"Child Physical Abuse or Neglect"]
[null,null,null,null,"Child Pornography"]
[null,null,null,null,"Child Sexual Abuse/Assault"]
[null,null,null,null,"Domestic and/or Family Violence"]
[null,null,null,null,"DUI/DWI Incidents"]
[null,null,null,null,"Elder Abuse or Neglect"]
[null,null,null,null,"Hate Crime: Racial/Religious/Sexual Orientation/Other (explain below)"]
[null,"An individual may be counted in more than one victimization type."]
[null,null,null,null,"Human Trafficking: Labor"]
[null,null,null,null,"Human Trafficking: Sex"]
[null,"Do not count an individual more than once for the same victimization.",null,null,"Identity Theft/Fraud/Financial Crime"]
[null,null,null,null,"Kidnapping (non-custodial)"]
[null,null,null,null,"Kidnapping (parental/custodial)"]
[null,"SEE APPENDIX FOR DEFINITIONS",null,null,"Mass Violence (Domestic/International)"]
[null,null,null,null,"Other Vehicular Victimization (e.g., Hit and Run)"]
[null,null,null,null,"Robbery"]
[null,null,null,null,"Stalking/Harassment"]
[null,null,null,null,"Survivors of Homicide Victims"]
[null,null,null,null,"Teen Dating Victimization"]
[null,null,null,null,"Terrorism (Domestic/International)"]
[null,null,null,null,"Violation of a Court (Protective) Order"]
[null,null,null,null,"Other (explain below)"]
[]
[]
[null,"B. Of the number of individuals receiving services, the number who presented with more than one type of victimization during the reporting period"]
[]
[null,"C. Special classification of individuals",null,null,"Deaf/Hard of Hearing"]
[null,null,null,null,"Homeless"]
[null,null,null,null,"Immigrants/Refugees/ Asylum Seekers"]
[null,null,null,null,"LGBTQ"]
[null,null,null,null,"Veterans"]
[null,null,null,null,"Victim with Disabilities; Cognitive/Physical/ Mental"]
[null,null,null,null,"Victims with Limited English Proficiency"]
[null,null,null,null,"Other (explain below)"]
[]
[]
["DIRECT SERVICES"]
["6)","Number of individuals assisted with a victim compensation application during the reporting period."]
[]
[]
["7)","Select the types of services provided by your organization during the reporting period."]
[null,null,"A. Information and Referral"]
[null,null,"B. Personal Advocacy/Accompaniment"]
[null,null,"C. Emotional Support or Safety Services"]
[null,null,"D. Shelter/Housing Services"]
[null,null,"E. Criminal/Civil Justice System Assistance"]
[]
["8)","Total number of individuals who received services and occurrence by service type.",null,null,null,null,null,null,null,"(8A + 8B + 8C + 8D + 8E) Should be equal to or Greater than Question 1 + Question 2:",null,null,null,null,null,{"$f":"SUM($B$7,$B$10)","v":0}]
[null,"A. "," Information and Referral",null,null,null,null,null,null," "]
[null,null,null,null,"8A should be less than or equal to the sum of Question 1 + Question 2:",null,null,null,null,{"$f":"SUM($B$7,$B$10)","v":0}]
[null,null,"Enter the number of times a service was provided in each subcategory listed.",null,null,null,null,null,null,null,null,null,null,"A1-A4=",null,{"$f":"SUM($D$110,$D$112,$D$114,$D$117)","v":0}]
[null,null,"A1."," Information about the criminal justice process.",null,null,null,null,null,"The sum of A1-A4 should be equal to or greater than 8A:",null,null,null,null,null,{"$f":"$C$107","v":0}]
[]
[null,null,"A2.","Information about victim rights, how to obtain notifications, etc."]
[]
[null,null,"A3.","Referral to other victim service programs."]
[]
[null,null,"A4.","Referral to other services, supports, and resources."]
[null,null,null,"(includes legal, medical, faith-based organizations, address confidentiality programs, etc.)"]
[]
[null,"B. ","Personal Advocacy/Accompaniment "]
[null,null,null,null,"8B should be less than or equal to the sum of Question 1 + Question 2:",null,null,null,null,{"$f":"SUM($B$7,$B$10)","v":0}]
[null,null,"Enter the number of times a service was provided in each subcategory listed. ",null,null,null,null,null,null,null,null,null,null,"B1-B10=",null,{"$f":"SUM($D$122,$D$124,$D$126,$D$128,$D$130,$D$132,$D$134,$D$136,$D$138,$D$140)","v":0}]
[null,null,"B1.","Victim advocacy/accompaniment to emergency medical care.",null,null,null,null,null," (The sum of B1-B10 should be equal to or greater than 8B):",null,null,null,null,null,{"$f":"$C$119","v":0}]
[]
[null,null,"B2.","Victim advocacy/accompaniment to medical forensic exam."]
[]
[null,null,"B3.","Law enforcement interview advocacy/accompaniment."]
[]
[null,null,"B4.","Individual Advocacy  (assistance in applying for public benefits, return of personal property or effects)."]
[]
[null,null,"B5.","Performance of medical forensic exam or interview, or medical evidence collection."]
[]
[null,null,"B6.","Immigration assistance  (e.g., special visas, certified presence application, other immigration relief)."]
[]
[null,null,"B7.","Intervention with employer, creditor, landlord, or academic institution."]
[]
[null,null,"B8.","Child or dependent care assistance (provided by agency)."]
[]
[null,null,"B9.","Transportation assistance (provided by agency)."]
[]
[null,null,"B10.","Interpreter services (provided by agency)."]
[]
[null,"C. ","Emotional Support or Safety Services"]
[null,null,null,null,"8C should be less than or equal to the sum of Question 1 + Question 2:",null,null,null,null,{"$f":"SUM($B$7,$B$10)","v":0}]
[null,null,"Enter the number of times a service was provided in each subcategory listed. ",null,null,null,null,null,null,null,null,null,null,"C1-C7=",null,{"$f":"SUM($D$145,$D$147,$D$149,$D$151,$D$154,$D$156,$D$160)","v":0}]
[null,null,"C1.","Crisis Intervention (in-person, includes safety planning, etc.).",null,null,null,null,null,"(The sum of C1-C7 should be equal to or greater than 8C):",null,null,null,null,null,{"$f":"$C$142","v":0}]
[]
[null,null,"C2.","Hotline/crisis line counseling."]
[]
[null,null,"C3.","On-scene crisis response (e.g., community crisis response)."]
[]
[null,null,"C4.","Individual Counseling."]
[]
[null,null,"C5.","Support groups."]
[null,null,null,"(facilitated or peer)"]
[]
[null,null,"C6.","Other therapy."]
[]
[null,null,"C7.","Emergency financial assistance."]
[null,null,null,"(includes emergency loans and petty cash, payment for items such as food and/or clothing, changing windows"]
[null,null,null,"and/or locks, taxis, prophylactic and nonprophylactic meds, durable medical equipment, etc.)"]
[]
[]
[null,"D. ","Shelter/Housing Services "]
[null,null,null,null,"8D should be less than or equal to the sum of Question 1 + Question 2:",null,null,null,null,{"$f":"SUM($B$7,$B$10)","v":0}]
[null,null,"Enter the number of times a service was provided in each subcategory listed.",null,null,null,null,null,null,null,null,null,null,"D1-D3=",null,{"$f":"SUM($D$166,$D$168,$D$170)","v":0}]
[null,null,"D1.","Emergency shelter or safe house.",null,null,null,null,null,"The sum of D1-D3 should be equal to or greater than 8D:",null,null,null,null,null,{"$f":"$C$163","v":0}]
[]
[null,null,"D2.","Transitional housing."]
[]
[null,null,"D3.","Relocation assistance (includes assistance with obtaining housing)."]
[]
[]
[null,"E. ","Criminal/Civil Justice System Assistance "]
[null,null,null,null,"8E should be less than or equal to the sum of Question 1 + Question 2:",null,null,null,null,{"$f":"SUM($B$7,$B$10)","v":0}]
[null,null,"Enter the number of times a service was provided in each subcategory listed.",null,null,null,null,null,null,null,null,null,null,"E1-E11=",null,{"$f":"SUM($D$177,$D$179,$D$182,$D$184,$D$187,$D$190,$D$193,$D$196,$D$198,$D$200,$D$202)","v":0}]
[null,null,"E1.","Notification of criminal justice events.",null,null,null,null,null,"The sum of E1-E11 should be equal to or greater than 8E:",null,null,null,null,null,{"$f":"$C$173","v":0}]
[null,null,null,"(e.g., case status, arrest, court proceedings, case disposition, release, etc.)"]
[]
[null,null,"E2.","Victim impact statement assistance."]
[]
[null,null,"E3.","Assistance with restitution."]
[null,null,null,"(includes assistance in requesting and when collection efforts are unsuccessful)"]
[]
[null,null,"E4.","Civil legal assistance in obtaining protection or restraining order."]
[]
[null,null,"E5.","Civil legal assistance with family law issues."]
[null,null,null,"(e.g., custody, visitation, or support)"]
[]
[null,null,"E6.","Other emergency justice-related assistance."]
[null,null,null,"(e.g., custody, visitation, or support)"]
[]
[null,null,"E7.","Immigration assistance."]
[null,null,null,"(e.g., special visas, continued presence application, and other immigration relief)"]
[]
[null,null,"E8.","Prosecution interview advocacy/accompaniment."]
[null,null,null,"(includes accompaniment with prosecuting attorney and with victim/witness)"]
[]
[null,null,"E9.","Law enforcement interview advocacy/accompaniment."]
[]
[null,null,"E10.","Criminal advocacy/accompaniment."]
[]
[null,null,"E11.","Other legal advice and/or counsel."]
[]
[]
[]
["Signature of Authorized or Acting Authorized Official",null,null,null,null,null,null,null,null,"Date"]
[]
["Revised 11/14/2023"]
[]
[]
["Additional Comments within this reporting period  "]

{"sheet":"DSS 4th Quarter","index":3,"n_rows":210,"n_cols":16,"rows_kept":210,"cut":false,"hidden":false,"merged":[[64,1,66,3],[67,1,69,3],[70,1,71,3],[4,0,4,9],[5,1,5,9],[6,1,6,2],[8,1,8,9],[9,2,9,4],[11,1,11,9],[19,4,19,7],[19,8,19,9],[20,4,20,7],[20,8,20,9],[26,1,26,3],[26,4,26,7],[26,8,26,9],[21,8,21,9],[22,4,22,7],[22,8,22,9],[23,4,23,7],[23,8,23,9],[40,8,40,9],[41,4,41,7],[41,8,41,9],[0,0,0,5],[1,0,1,3],[1,4,1,9],[3,0,3,1],[3,2,3,3],[3,5,3,6],[3,7,3,9],[18,4,18,7],[18,8,18,9],[12,4,12,9],[14,1,14,5],[15,1,15,3],[15,4,15,7],[15,8,15,9],[16,1,25,3],[16,4,16,7],[16,8,16,9],[17,4,17,7],[17,8,17,9],[24,4,24,7],[24,8,24,9],[25,4,25,7],[25,8,25,9],[21,4,21,7],[31,10,31,14],[32,4,32,7],[32,8,32,9],[33,4,33,7],[33,8,33,9],[34,4,34,7],[34,8,34,9],[28,1,33,3],[28,4,28,7],[28,8,28,9],[29,4,29,7],[29,8,29,9],[30,4,30,7],[30,8,30,9],[31,4,31,9],[42,4,42,7],[42,8,42,9],[43,4,43,7],[43,8,43,9],[36,1,42,3],[36,4,36,7],[36,8,36,9],[37,4,37,7],[37,8,37,9],[38,4,38,7],[38,8,38,9],[39,4,39,7],[39,8,39,9],[40,4,40,7],[45,1,45,9],[45,10,45,11],[46,1,50,3],[46,4,50,8],[46,9,50,11],[51,4,51,8],[51,9,51,11],[52,4,52,8],[52,9,52,11],[51,1,63,3],[56,4,56,8],[56,9,56,11],[57,4,57,8],[57,9,57,11],[58,4,58,8],[58,9,58,11],[53,4,53,8],[53,9,53,11],[54,4,54,8],[54,9,54,11],[55,4,55,8],[55,9,55,11],[62,4,62,8],[62,9,62,11],[63,4,63,8],[63,9,63,11],[64,4,64,11],[65,4,65,8],[65,9,65,11],[59,4,59,8],[59,9,59,11],[60,4,60,8],[60,9,60,11],[61,4,61,8],[61,9,61,11],[69,4,69,8],[69,9,69,11],[70,4,70,8],[70,9,70,11],[71,4,71,8],[71,9,71,11],[66,4,66,8],[66,9,66,11],[67,4,67,8],[67,9,67,11],[68,4,68,8],[68,9,68,11],[75,4,75,8],[75,9,75,11],[76,4,76,8],[76,9,76,11],[77,4,77,8],[77,9,77,11],[72,4,72,8],[72,9,72,11],[73,4,73,8],[73,9,73,11],[74,4,74,8],[74,9,74,11],[85,4,85,8],[85,9,85,11],[86,4,86,8],[86,9,86,11],[87,4,87,8],[87,9,87,11],[78,4,78,8],[78,9,78,11],[79,4,79,11],[81,1,81,8],[81,9,81,11],[83,1,91,3],[83,4,83,8],[83,9,83,11],[84,4,84,8],[84,9,84,11],[91,4,91,11],[95,1,95,2],[104,1,104,8],[104,9,104,14],[105,2,105,8],[106,2,106,3],[106,4,106,8],[88,4,88,8],[88,9,88,11],[89,4,89,8],[89,9,89,11],[90,4,90,8],[90,9,90,11],[119,2,119,8],[119,13,119,14],[120,9,120,14],[141,2,141,3],[141,4,141,8],[142,2,142,8],[142,13,142,14],[107,2,107,8],[107,13,107,14],[108,9,108,14],[117,2,117,10],[118,2,118,3],[118,4,118,8],[172,2,172,3],[172,4,172,8],[173,2,173,8],[173,13,173,14],[174,9,174,14],[196,3,196,8],[143,9,143,14],[162,2,162,3],[162,4,162,8],[163,2,163,8],[163,13,163,14],[164,9,164,14],[206,0,206,1],[209,0,209,11],[210,0,214,11],[198,3,198,6],[200,3,200,6],[203,0,203,7],[203,9,203,11],[204,0,204,7],[204,9,204,11]]}
[]
["Organization Name:",null,null,null,{"$f":"'DSS 1st Quarter'!E2:J2","v":0}]
[]
["Contract #:",null,{"$f":"'DSS 1st Quarter'!C4:D4","v":0},null,null,"Dates Reported:",null,"7/1-9/30"]
["POPULATION DEMOGRAPHICS"]
["1) ","Total number of individuals who received services during the reporting period."]
[]
[]
["2) ","Total number of anonymous contacts received during the reporting period?"]
[]
[]
["3) ","Number of New individuals who received services from your agency for the first time during the reporting period?"]
[]
[]
["4)","Demographics: The total number should equal:",null,null,null,null,{"$f":"$B$13","v":0}]
[null,"Category",null,null,"Population",null,null,null,"Number of NEW Individuals"]
[null,"RACE/ETHNICITY                                     (self-reported)",null,null,"American Indian/Alaskan Native"]
[null,null,null,null,"Asian"]
[null,null,null,null,"Black/African American"]
[null,null,null,null,"Hispanic or Latino"]
[null,null,null,null,"Native Hawaiian/Other Pacific Islander"]
[null,null,null,null,"White Non-Latino/Caucasian"]
[null,null,null,null,"Some Other Race"]
[null,null,null,null,"Multiple Races"]
[null,null,null,null,"Not Reported"]
[null,null,null,null,"Not Tracked"]
[null,null,null,null,"TOTAL (Equal to the # in #3)",null,null,null,{"$f":"SUM(I17:J26)","v":0}]
[]
[null,"GENDER IDENTITY                                 (self-reported)",null,null,"Male"]
[null,null,null,null,"Female"]
[null,null,null,null,"Other (briefly describe below)"]
[]
[null,null,null,null,"Not Reported"]
[null,null,null,null,"Not Tracked"]
[null,null,null,null,"TOTAL (Equal to the # in #3)",null,null,null,{"$f":"I29+I30+I31+I33+I34","v":0}]
[]
[null,"AGE                                                          (self-reported)",null,null,"0 - 12"]
[null,null,null,null,"13 -17"]
[null,null,null,null,"18 - 24"]
[null,null,null,null,"25 - 59"]
[null,null,null,null,"60 and older"]
[null,null,null,null,"Not Reported"]
[null,null,null,null,"Not Tracked"]
[null,null,null,null,"TOTAL (Equal to the # in #3)",null,null,null,{"$f":"SUM(I37:J43)","v":0}]
[]
["5)","TYPES OF VICTIMIZATIONS: The sum of Question 5A should be greater than or equal to the total of Question 1 and Question 2:",null,null,null,null,null,null,null,null,{"$f":"SUM($B$7,$B$10)","v":0}]
[null,"Individuals who received services by type of victimization",null,null,"VICTIMIZATION TYPE",null,null,null,null,"A. Number of individuals who received services based on a presenting victimization during the reporting period"]
[]
[]
[]
[]
[null,"                                                                                          INSTRUCTIONS: Enter a count for each victimization type of individuals who received services based on the presenting victimization type(s) during the reporting period.",null,null,"Adult Physical Assault (includes Aggravated and Simple Assault)"]
[null,null,null,null,"Adult Sexual Assault"]
[null,null,null,null,"Adults Sexually Abused/Assaulted as Children"]
[null,null,null,null,"Arson"]
[null,null,null,null,"Bullying (Verbal, Cyber, or Physical)"]
[null,null,null,null,"Burglary"]
[null,null,null,null,"Child Physical Abuse or Neglect"]
[null,null,null,null,"Child Pornography"]
[null,null,null,null,"Child Sexual Abuse/Assault"]
[null,null,null,null,"Domestic and/or Family Violence"]
[null,null,null,null,"DUI/DWI Incidents"]
[null,null,null,null,"Elder Abuse or Neglect"]
[null,null,null,null,"Hate Crime: Racial/Religious/Sexual Orientation/Other (explain below)"]
[null,"An individual may be counted in more than one victimization type."]
[null,null,null,null,"Human Trafficking: Labor"]
[null,null,null,null,"Human Trafficking: Sex"]
[null,"Do not count an individual more than once for the same victimization.",null,null,"Identity Theft/Fraud/Financial Crime"]
[null,null,null,null,"Kidnapping (non-custodial)"]
[null,null,null,null,"Kidnapping (parental/custodial)"]
[null,"SEE APPENDIX FOR DEFINITIONS",null,null,"Mass Violence (Domestic/International)"]
[null,null,null,null,"Other Vehicular Victimization (e.g., Hit and Run)"]
[null,null,null,null,"Robbery"]
[null,null,null,null,"Stalking/Harassment"]
[null,null,null,null,"Survivors of Homicide Victims"]
[null,null,null,null,"Teen Dating Victimization"]
[null,null,null,null,"Terrorism (Domestic/International)"]
[null,null,null,null,"Violation of a Court (Protective) Order"]
[null,null,null,null,"Other (explain below)"]
[]
[]
[null,"B. Of the number of individuals receiving services, the number who presented with more than one type of victimization during the reporting period"]
[]
[null,"C. Special classification of individuals",null,null,"Deaf/Hard of Hearing"]
[null,null,null,null,"Homeless"]
[null,null,null,null,"Immigrants/Refugees/ Asylum Seekers"]
[null,null,null,null,"LGBTQ"]
[null,null,null,null,"Veterans"]
[null,null,null,null,"Victim with Disabilities; Cognitive/Physical/ Mental"]
[null,null,null,null,"Victims with Limited English Proficiency"]
[null,null,null,null,"Other (explain below)"]
[]
[]
["DIRECT SERVICES"]
["6)","Number of individuals assisted with a victim compensation application during the reporting period."]
[]
[]
["7)","Select the types of services provided by your organization during the reporting period."]
[null,null,"A. Information and Referral"]
[null,null,"B. Personal Advocacy/Accompaniment"]
[null,null,"C. Emotional Support or Safety Services"]
[null,null,"D. Shelter/Housing Services"]
[null,null,"E. Criminal/Civil Justice System Assistance"]
[]
["8)","Total number of individuals who received services and occurrence by service type.",null,null,null,null,null,null,null,"(8A + 8B + 8C + 8D + 8E) Should be equal to or Greater than Question 1 + Question 2:",null,null,null,null,null,{"$f":"SUM($B$7,$B$10)","v":0}]
[null,"A. "," Information and Referral",null,null,null,null,null,null," "]
[null,null,null,null,"8A should be less than or equal to the sum of Question 1 + Question 2:",null,null,null,null,{"$f":"SUM($B$7,$B$10)","v":0}]
[null,null,"Enter the number of times a service was provided in each subcategory listed.",null,null,null,null,null,null,null,null,null,null,"A1-A4=",null,{"$f":"SUM($D$110,$D$112,$D$114,$D$117)","v":0}]
[null,null,"A1."," Information about the criminal justice process.",null,null,null,null,null,"The sum of A1-A4 should be equal to or greater than 8A:",null,null,null,null,null,{"$f":"$C$107","v":0}]
[]
[null,null,"A2.","Information about victim rights, how to obtain notifications, etc."]
[]
[null,null,"A3.","Referral to other victim service programs."]
[]
[null,null,"A4.","Referral to other services, supports, and resources."]
[null,null,null,"(includes legal, medical, faith-based organizations, address confidentiality programs, etc.)"]
[]
[null,"B. ","Personal Advocacy/Accompaniment "]
[null,null,null,null,"8B should be less than or equal to the sum of Question 1 + Question 2:",null,null,null,null,{"$f":"SUM($B$7,$B$10)","v":0}]
[null,null,"Enter the number of times a service was provided in each subcategory listed. ",null,null,null,null,null,null,null,null,null,null,"B1-B10=",null,{"$f":"SUM($D$122,$D$124,$D$126,$D$128,$D$130,$D$132,$D$134,$D$136,$D$138,$D$140)","v":0}]
[null,null,"B1.","Victim advocacy/accompaniment to emergency medical care.",null,null,null,null,null," (The sum of B1-B10 should be equal to or greater than 8B):",null,null,null,null,null,{"$f":"$C$119","v":0}]
[]
[null,null,"B2.","Victim advocacy/accompaniment to medical forensic exam."]
[]
[null,null,"B3.","Law enforcement interview advocacy/accompaniment."]
[]
[null,null,"B4.","Individual Advocacy  (assistance in applying for public benefits, return of personal property or effects)."]
[]
[null,null,"B5.","Performance of medical forensic exam or interview, or medical evidence collection."]
[]
[null,null,"B6.","Immigration assistance  (e.g., special visas, certified presence application, other immigration relief)."]
[]
[null,null,"B7.","Intervention with employer, creditor, landlord, or academic institution."]
[]
[null,null,"B8.","Child or dependent care assistance (provided by agency)."]
[]
[null,null,"B9.","Transportation assistance (provided by agency)."]
[]
[null,null,"B10.","Interpreter services (provided by agency)."]
[]
[null,"C. ","Emotional Support or Safety Services"]
[null,null,null,null,"8C should be less than or equal to the sum of Question 1 + Question 2:",null,null,null,null,{"$f":"SUM($B$7,$B$10)","v":0}]
[null,null,"Enter the number of times a service was provided in each subcategory listed. ",null,null,null,null,null,null,null,null,null,null,"C1-C7=",null,{"$f":"SUM($D$145,$D$147,$D$149,$D$151,$D$154,$D$156,$D$160)","v":0}]
[null,null,"C1.","Crisis Intervention (in-person, includes safety planning, etc.)",null,null,null,null,null,"(The sum of C1-C7 should be equal to or greater than 8C):",null,null,null,null,null,{"$f":"$C$142","v":0}]
[]
[null,null,"C2.","Hotline/crisis line counseling."]
[]
[null,null,"C3.","On-scene crisis response (e.g., community crisis response)."]
[]
[null,null,"C4.","Individual Counseling."]
[]
[null,null,"C5.","Support groups."]
[null,null,null,"(facilitated or peer)"]
[]
[null,null,"C6.","Other therapy."]
[]
[null,null,"C7.","Emergency financial assistance."]
[null,null,null,"(includes emergency loans and petty cash, payment for items such as food and/or clothing, changing windows"]
[null,null,null,"and/or locks, taxis, prophylactic and nonprophylactic meds, durable medical equipment, etc.)"]
[]
[]
[null,"D. ","Shelter/Housing Services "]
[null,null,null,null,"8D should be less than or equal to the sum of Question 1 + Question 2:",null,null,null,null,{"$f":"SUM($B$7,$B$10)","v":0}]
[null,null,"Enter the number of times a service was provided in each subcategory listed.",null,null,null,null,null,null,null,null,null,null,"D1-D3=",null,{"$f":"SUM($D$166,$D$168,$D$170)","v":0}]
[null,null,"D1.","Emergency shelter or safe house.",null,null,null,null,null,"The sum of D1-D3 should be equal to or greater than 8D:",null,null,null,null,null,{"$f":"$C$163","v":0}]
[]
[null,null,"D2.","Transitional housing."]
[]
[null,null,"D3.","Relocation assistance (includes assistance with obtaining housing)."]
[]
[]
[null,"E. ","Criminal/Civil Justice System Assistance "]
[null,null,null,null,"8E should be less than or equal to the sum of Question 1 + Question 2:",null,null,null,null,{"$f":"SUM($B$7,$B$10)","v":0}]
[null,null,"Enter the number of times a service was provided in each subcategory listed.",null,null,null,null,null,null,null,null,null,null,"E1-E11=",null,{"$f":"SUM($D$177,$D$179,$D$182,$D$184,$D$187,$D$190,$D$193,$D$196,$D$198,$D$200,$D$202)","v":0}]
[null,null,"E1.","Notification of criminal justice events.",null,null,null,null,null,"The sum of E1-E11 should be equal to or greater than 8E:",null,null,null,null,null,{"$f":"$C$173","v":0}]
[null,null,null,"(e.g., case status, arrest, court proceedings, case disposition, release, etc.)"]
[]
[null,null,"E2.","Victim impact statement assistance."]
[]
[null,null,"E3.","Assistance with restitution."]
[null,null,null,"(includes assistance in requesting and when collection efforts are unsuccessful)"]
[]
[null,null,"E4.","Civil legal assistance in obtaining protection or restraining order."]
[]
[null,null,"E5.","Civil legal assistance with family law issues."]
[null,null,null,"(e.g., custody, visitation, or support)"]
[]
[null,null,"E6.","Other emergency justice-related assistance."]
[null,null,null,"(e.g., custody, visitation, or support)"]
[]
[null,null,"E7.","Immigration assistance."]
[null,null,null,"(e.g., special visas, continued presence application, and other immigration relief)"]
[]
[null,null,"E8.","Prosecution interview advocacy/accompaniment."]
[null,null,null,"(includes accompaniment with prosecuting attorney and with victim/witness)"]
[]
[null,null,"E9.","Law enforcement interview advocacy/accompaniment."]
[]
[null,null,"E10.","Criminal advocacy/accompaniment."]
[]
[null,null,"E11.","Other legal advice and/or counsel."]
[]
[]
[]
["Signature of Authorized or Acting Authorized Official",null,null,null,null,null,null,null,null,"Date"]
[]
["Revised 11/14/2023"]
[]
[]
["Additional Comments within this reporting period  "]

{"sheet":"Annual","index":4,"n_rows":217,"n_cols":10,"rows_kept":217,"cut":false,"hidden":false,"merged":[[215,0,215,11],[216,0,220,11],[11,1,11,9],[4,0,4,9],[5,1,5,9],[6,1,6,2],[8,1,8,9],[9,2,9,4],[1,0,1,3],[1,4,1,9],[3,0,3,1],[3,2,3,3],[3,5,3,6],[3,7,3,9],[12,1,12,2],[13,5,13,9],[19,8,19,9],[21,8,21,9],[22,8,22,9],[23,8,23,9],[18,1,18,3],[18,4,18,7],[18,8,18,9],[19,4,19,7],[20,4,20,7],[21,4,21,7],[23,4,23,7],[22,4,22,7],[20,8,20,9],[19,1,28,3],[24,8,24,9],[25,8,25,9],[24,4,24,7],[29,1,29,3],[29,4,29,7],[49,4,49,7],[49,8,49,9],[25,4,25,7],[26,4,26,7],[27,4,27,7],[28,4,28,7],[26,8,26,9],[27,8,27,9],[28,8,28,9],[40,4,40,7],[40,8,40,9],[29,8,29,9],[34,1,39,3],[34,4,34,7],[34,8,34,9],[35,4,35,7],[35,8,35,9],[36,4,36,7],[36,8,36,9],[37,4,37,7],[37,8,37,9],[38,4,38,7],[52,1,56,3],[52,4,56,8],[52,9,56,11],[45,8,45,9],[46,4,46,7],[46,8,46,9],[47,4,47,7],[47,8,47,9],[48,4,48,7],[48,8,48,9],[42,1,48,3],[42,4,42,7],[42,8,42,9],[43,4,43,7],[43,8,43,9],[44,4,44,7],[44,8,44,9],[45,4,45,7],[51,1,51,9],[38,8,38,9],[39,4,39,7],[39,8,39,9],[61,9,61,11],[62,4,62,8],[62,9,62,11],[63,4,63,8],[63,9,63,11],[64,1,66,3],[64,4,64,8],[64,9,64,11],[65,4,65,8],[65,9,65,11],[57,1,62,3],[57,4,57,8],[57,9,57,11],[58,4,58,8],[58,9,58,11],[59,4,59,8],[59,9,59,11],[60,4,60,8],[60,9,60,11],[61,4,61,8],[66,4,66,8],[66,9,66,11],[67,4,67,8],[67,9,67,11],[68,1,70,3],[68,4,68,8],[68,9,68,11],[69,4,69,8],[69,9,69,11],[70,4,70,11],[74,4,74,8],[74,9,74,11],[75,4,75,8],[75,9,75,11],[76,4,76,8],[76,9,76,11],[71,4,71,8],[71,9,71,11],[72,1,73,3],[72,4,72,8],[72,9,72,11],[73,4,73,8],[73,9,73,11],[80,4,80,8],[80,9,80,11],[81,4,81,8],[81,9,81,11],[82,4,82,8],[82,9,82,11],[77,4,77,8],[77,9,77,11],[78,4,78,8],[78,9,78,11],[79,4,79,8],[79,9,79,11],[83,4,83,8],[83,9,83,11],[84,4,84,11],[86,1,86,8],[86,9,86,11],[88,1,89,3],[88,4,88,8],[88,9,88,11],[89,4,89,8],[89,9,89,11],[90,1,90,3],[90,4,90,8],[90,9,90,11],[91,4,91,8],[91,9,91,11],[92,1,95,3],[92,4,92,8],[92,9,92,11],[93,4,93,8],[93,9,93,11],[99,1,99,11],[100,1,100,2],[102,1,102,11],[103,2,103,10],[104,2,104,10],[105,2,105,10],[94,4,94,8],[94,9,94,11],[95,4,95,8],[95,9,95,11],[96,4,96,11],[98,0,98,9],[115,3,115,9],[117,3,117,6],[119,3,119,7],[120,3,120,11],[122,2,122,5],[123,2,123,3],[106,2,106,10],[107,2,107,10],[109,1,109,11],[110,2,110,4],[111,2,111,3],[112,2,112,9],[135,3,135,11],[137,3,137,9],[139,3,139,9],[141,3,141,8],[143,3,143,8],[145,2,145,5],[152,3,152,8],[124,2,124,9],[125,3,125,8],[127,3,127,9],[129,3,129,8],[131,3,131,11],[133,3,133,10],[156,3,156,8],[157,3,157,11],[159,3,159,6],[161,3,161,6],[162,3,162,11],[163,3,163,11],[146,2,146,3],[147,2,147,9],[148,3,148,8],[150,3,150,5],[154,3,154,8],[176,2,176,3],[177,2,177,9],[178,3,178,8],[179,3,179,11],[181,3,181,6],[186,3,186,9],[166,2,166,5],[167,2,167,3],[168,2,168,9],[169,3,169,8],[171,3,171,5],[173,3,173,5],[212,0,212,1],[14,0,16,9],[10,0,10,9],[7,0,7,9],[2,0,2,9],[189,3,189,5],[191,3,191,10],[203,3,203,6],[206,3,206,11],[209,0,209,7],[209,9,209,11],[210,0,210,7],[210,9,210,11],[193,3,193,10],[194,3,194,9],[196,3,196,8],[197,3,197,9],[199,3,199,7],[201,3,201,6],[204,3,204,11],[183,3,183,5],[184,3,184,11],[188,3,188,10],[175,2,175,5]]}
[]
["Organization Name:",null,null,null,{"$f":"'DSS 1st Quarter'!E2:J2","v":0}]
[]
["Contract #:",null,{"$f":"'DSS 1st Quarter'!C4:D4","v":0},null,null,"Dates Reported:",null,"10/1-9/30"]
["POPULATION DEMOGRAPHICS"]
["1) ","TOTAL number of individuals who received services during the reporting period"]
[null,{"$f":"SUM('DSS 1st Quarter'!B7:C7,'DSS 2nd Quarter'!B7:C7,'DSS 3rd Quarter'!B7:C7,'DSS 4th Quarter'!B7:C7)","v":0}]
[]
["2) ","Total number of anonymous contacts received during the reporting period?"]
[null,{"$f":"SUM('DSS 1st Quarter'!B10,'DSS 2nd Quarter'!B10,'DSS 3rd Quarter'!B10,'DSS 4th Quarter'!B10)","v":0}]
[]
["3) ","Number of NEW individuals who received services from your agency for the first time during the reporting period"]
[null,{"$f":"SUM('DSS 1st Quarter'!B13,'DSS 2nd Quarter'!B13,'DSS 3rd Quarter'!B13,'DSS 4th Quarter'!B13)","v":0}]
[null,null,null,null,null,"Not Tracked means the agency is unable to submit this data as requested.  Efforts are underway to change the data collection method."]
[]
[]
[]
["4) ","Demographics"]
[null,"Category",null,null,"Population",null,null,null,"Number of NEW Individuals"]
[null,"RACE/ETHNICITY                                     (self-reported)",null,null,"American Indian/Alaskan Native",null,null,null,{"$f":"SUM('DSS 1st Quarter'!I17:J17,'DSS 2nd Quarter'!I17:J17,'DSS 3rd Quarter'!I17:J17,'DSS 4th Quarter'!I17:J17)","v":0}]
[null,null,null,null,"Asian",null,null,null,{"$f":"SUM('DSS 1st Quarter'!I18:J18,'DSS 2nd Quarter'!I18:J18,'DSS 3rd Quarter'!I18:J18,'DSS 4th Quarter'!I18:J18)","v":0}]
[null,null,null,null,"Black/African American",null,null,null,{"$f":"SUM('DSS 1st Quarter'!I19:J19,'DSS 2nd Quarter'!I19:J19,'DSS 3rd Quarter'!I19:J19,'DSS 4th Quarter'!I19:J19)","v":0}]
[null,null,null,null,"Hispanic or Latino",null,null,null,{"$f":"SUM('DSS 1st Quarter'!I20:J20,'DSS 2nd Quarter'!I20:J20,'DSS 3rd Quarter'!I20:J20,'DSS 4th Quarter'!I20:J20)","v":0}]
[null,null,null,null,"Native Hawaiian/Other Pacific Islander",null,null,null,{"$f":"SUM('DSS 1st Quarter'!I21:J21,'DSS 2nd Quarter'!I21:J21,'DSS 3rd Quarter'!I21:J21,'DSS 4th Quarter'!I21:J21)","v":0}]
[null,null,null,null,"White Non-Latino/Caucasian",null,null,null,{"$f":"SUM('DSS 1st Quarter'!I22:J22,'DSS 2nd Quarter'!I22:J22,'DSS 3rd Quarter'!I22:J22,'DSS 4th Quarter'!I22:J22)","v":0}]
[null,null,null,null,"Some Other Race",null,null,null,{"$f":"SUM('DSS 1st Quarter'!I23:J23,'DSS 2nd Quarter'!I23:J23,'DSS 3rd Quarter'!I23:J23,'DSS 4th Quarter'!I23:J23)","v":0}]
[null,null,null,null,"Multiple Races",null,null,null,{"$f":"SUM('DSS 1st Quarter'!I24:J24,'DSS 2nd Quarter'!I24:J24,'DSS 3rd Quarter'!I24:J24,'DSS 4th Quarter'!I24:J24)","v":0}]
[null,null,null,null,"Not Reported",null,null,null,{"$f":"SUM('DSS 1st Quarter'!I25:J25,'DSS 2nd Quarter'!I25:J25,'DSS 3rd Quarter'!I25:J25,'DSS 4th Quarter'!I25:J25)","v":0}]
[null,null,null,null,"Not Tracked",null,null,null,{"$f":"SUM('DSS 1st Quarter'!I26:J26,'DSS 2nd Quarter'!I26:J26,'DSS 3rd Quarter'!I26:J26,'DSS 4th Quarter'!I26:J26)","v":0}]
[null,null,null,null,"TOTAL ",null,null,null,{"$f":"SUM(I20,I21,I22,I23,I24,I25,I26,I27,I28,I29)","v":0}]
[]
[]
[]
[]
[null,"GENDER IDENTITY                                 (self-reported)",null,null,"Male",null,null,null,{"$f":"SUM('DSS 1st Quarter'!I29:J29,'DSS 2nd Quarter'!I29:J29,'DSS 3rd Quarter'!I29:J29,'DSS 4th Quarter'!I29:J29,)","v":0}]
[null,null,null,null,"Female",null,null,null,{"$f":"SUM('DSS 1st Quarter'!I30:J30,'DSS 2nd Quarter'!I30:J30,'DSS 3rd Quarter'!I30:J30,'DSS 4th Quarter'!I30:J30,)","v":0}]
[null,null,null,null,"Other (briefly describe below)",null,null,null,{"$f":"SUM('DSS 1st Quarter'!I31:J31,'DSS 2nd Quarter'!I31:J31,'DSS 3rd Quarter'!I31:J31,'DSS 4th Quarter'!I31:J31,)","v":0}]
[]
[null,null,null,null,"Not Reported",null,null,null,{"$f":"SUM('DSS 1st Quarter'!I33:J33,'DSS 2nd Quarter'!I33:J33,'DSS 3rd Quarter'!I33:J33,'DSS 4th Quarter'!I33:J33)","v":0}]
[null,null,null,null,"Not Tracked",null,null,null,{"$f":"SUM('DSS 1st Quarter'!I34:J34,'DSS 2nd Quarter'!I34:J34,'DSS 3rd Quarter'!I34:J34,'DSS 4th Quarter'!I34:J34)","v":0}]
[null,null,null,null,"TOTAL ",null,null,null,{"$f":"SUM(I35,I36,I37,I39,I40)","v":0}]
[]
[null,"AGE                                                          (self-reported)",null,null,"0 - 12",null,null,null,{"$f":"SUM('DSS 1st Quarter'!I37:J37,'DSS 2nd Quarter'!I37:J37,'DSS 3rd Quarter'!I37:J37,'DSS 4th Quarter'!I37:J37)","v":0}]
[null,null,null,null,"13 -17",null,null,null,{"$f":"SUM('DSS 1st Quarter'!I38:J38,'DSS 2nd Quarter'!I38:J38,'DSS 3rd Quarter'!I38:J38,'DSS 4th Quarter'!I38:J38)","v":0}]
[null,null,null,null,"18 - 24",null,null,null,{"$f":"SUM('DSS 1st Quarter'!I39:J39,'DSS 2nd Quarter'!I39:J39,'DSS 3rd Quarter'!I39:J39,'DSS 4th Quarter'!I39:J39)","v":0}]
[null,null,null,null,"25 - 59",null,null,null,{"$f":"SUM('DSS 1st Quarter'!I40:J40,'DSS 2nd Quarter'!I40:J40,'DSS 3rd Quarter'!I40:J40,'DSS 4th Quarter'!I40:J40)","v":0}]
[null,null,null,null,"60 and older",null,null,null,{"$f":"SUM('DSS 1st Quarter'!I41:J41,'DSS 2nd Quarter'!I41:J41,'DSS 3rd Quarter'!I41:J41,'DSS 4th Quarter'!I41:J41)","v":0}]
[null,null,null,null,"Not Reported",null,null,null,{"$f":"SUM('DSS 1st Quarter'!I42:J42,'DSS 2nd Quarter'!I42:J42,'DSS 3rd Quarter'!I42:J42,'DSS 4th Quarter'!I42:J42)","v":0}]
[null,null,null,null,"Not Tracked",null,null,null,{"$f":"SUM('DSS 1st Quarter'!I43:J43,'DSS 2nd Quarter'!I43:J43,'DSS 3rd Quarter'!I43:J43,'DSS 4th Quarter'!I43:J43)","v":0}]
[null,null,null,null,"TOTAL ",null,null,null,{"$f":"SUM(I43:J49)","v":0}]
[]
["5) ","TYPES OF VICTIMIZATIONS (for ALL individuals identified in Question 1)"]
[null,"Individuals who received services by type of victimization",null,null,"VICTIMIZATION TYPE",null,null,null,null,"A. Number of individuals who received services based on a presenting victimization during the reporting period"]
[]
[]
[]
[]
[null,"INSTRUCTIONS: Enter a count for each victimization type of individuals who received services based on the presenting victimization type(s) during the reporting period.",null,null,"Adult Physical Assault (includes Aggravated and Simple Assault)",null,null,null,null,{"$f":"SUM('DSS 1st Quarter'!J52:L52,'DSS 2nd Quarter'!J52:L52,'DSS 3rd Quarter'!J52:L52,'DSS 4th Quarter'!J52:L52)","v":0}]
[null,null,null,null,"Adult Sexual Assault",null,null,null,null,{"$f":"SUM('DSS 1st Quarter'!J53:L53,'DSS 2nd Quarter'!J53:L53,'DSS 3rd Quarter'!J53:L53,'DSS 4th Quarter'!J53:L53)","v":0}]
[null,null,null,null,"Adults Sexually Abused/Assaulted as Children",null,null,null,null,{"$f":"SUM('DSS 1st Quarter'!J54:L54,'DSS 2nd Quarter'!J54:L54,'DSS 3rd Quarter'!J54:L54,'DSS 4th Quarter'!J54:L54)","v":0}]
[null,null,null,null,"Arson",null,null,null,null,{"$f":"SUM('DSS 1st Quarter'!J55:L55,'DSS 2nd Quarter'!J55:L55,'DSS 3rd Quarter'!J55:L55,'DSS 4th Quarter'!J55:L55)","v":0}]
[null,null,null,null,"Bullying (Verbal, Cyber, or Physical)",null,null,null,null,{"$f":"SUM('DSS 1st Quarter'!J56:L56,'DSS 2nd Quarter'!J56:L56,'DSS 3rd Quarter'!J56:L56,'DSS 4th Quarter'!J56:L56)","v":0}]
[null,null,null,null,"Burglary",null,null,null,null,{"$f":"SUM('DSS 1st Quarter'!J57:L57,'DSS 2nd Quarter'!J57:L57,'DSS 3rd Quarter'!J57:L57,'DSS 4th Quarter'!J57:L57)","v":0}]
[null,null,null,null,"Child Physical Abuse or Neglect",null,null,null,null,{"$f":"SUM('DSS 1st Quarter'!J58:L58,'DSS 2nd Quarter'!J58:L58,'DSS 3rd Quarter'!J58:L58,'DSS 4th Quarter'!J58:L58)","v":0}]
[null,"An individual may be counted in more than one victimization type.",null,null,"Child Pornography",null,null,null,null,{"$f":"SUM('DSS 1st Quarter'!J59:L59,'DSS 2nd Quarter'!J59:L59,'DSS 3rd Quarter'!J59:L59,'DSS 4th Quarter'!J59:L59)","v":0}]
[null,null,null,null,"Child Sexual Abuse/Assault",null,null,null,null,{"$f":"SUM('DSS 1st Quarter'!J60:L60,'DSS 2nd Quarter'!J60:L60,'DSS 3rd Quarter'!J60:L60,'DSS 4th Quarter'!J60:L60)","v":0}]
[null,null,null,null,"Domestic and/or Family Violence",null,null,null,null,{"$f":"SUM('DSS 1st Quarter'!J61:L61,'DSS 2nd Quarter'!J61:L61,'DSS 3rd Quarter'!J61:L61,'DSS 4th Quarter'!J61:L61)","v":0}]
[null,null,null,null,"DUI/DWI Incidents",null,null,null,null,{"$f":"SUM('DSS 1st Quarter'!J62:L62,'DSS 2nd Quarter'!J62:L62,'DSS 3rd Quarter'!J62:L62,'DSS 4th Quarter'!J62:L62)","v":0}]
[null,"Do not count an individual more than once for the same victimization.",null,null,"Elder Abuse or Neglect",null,null,null,null,{"$f":"SUM('DSS 1st Quarter'!J63:L63,'DSS 2nd Quarter'!J63:L63,'DSS 3rd Quarter'!J63:L63,'DSS 4th Quarter'!J63:L63)","v":0}]
[null,null,null,null,"Hate Crime: Racial/Religious/Sexual Orientation/Other (if Other, explain below)",null,null,null,null,{"$f":"SUM('DSS 1st Quarter'!J64:L64,'DSS 2nd Quarter'!J64:L64,'DSS 3rd Quarter'!J64:L64,'DSS 4th Quarter'!J64:L64)","v":0}]
[]
[null,null,null,null,"Human Trafficking: Labor",null,null,null,null,{"$f":"SUM('DSS 1st Quarter'!J66:L66,'DSS 2nd Quarter'!J66:L66,'DSS 3rd Quarter'!J66:L66,'DSS 4th Quarter'!J66:L66)","v":0}]
[null,"SEE APPENDIX FOR DEFINITIONS",null,null,"Human Trafficking: Sex",null,null,null,null,{"$f":"SUM('DSS 1st Quarter'!J67:L67,'DSS 2nd Quarter'!J67:L67,'DSS 3rd Quarter'!J67:L67,'DSS 4th Quarter'!J67:L67)","v":0}]
[null,null,null,null,"Identity Theft/Fraud/Financial Crime",null,null,null,null,{"$f":"SUM('DSS 1st Quarter'!J68:L68,'DSS 2nd Quarter'!J68:L68,'DSS 3rd Quarter'!J68:L68,'DSS 4th Quarter'!J68:L68)","v":0}]
[null,null,null,null,"Kidnapping (includes parental, custodial)",null,null,null,null,{"$f":"SUM('DSS 1st Quarter'!J69:L69,'DSS 2nd Quarter'!J69:L69,'DSS 3rd Quarter'!J69:L69,'DSS 4th Quarter'!J69:L69)","v":0}]
[null,null,null,null,"Mass Violence (Domestic/International)",null,null,null,null,{"$f":"SUM('DSS 1st Quarter'!J70:L70,'DSS 2nd Quarter'!J70:L70,'DSS 3rd Quarter'!J70:L70,'DSS 4th Quarter'!J70:L70)","v":0}]
[null,null,null,null,"Other Vehicular Victimization (e.g., Hit and Run)",null,null,null,null,{"$f":"SUM('DSS 1st Quarter'!J71:L71,'DSS 2nd Quarter'!J71:L71,'DSS 3rd Quarter'!J71:L71,'DSS 4th Quarter'!J71:L71)","v":0}]
[null,null,null,null,"Robbery",null,null,null,null,{"$f":"SUM('DSS 1st Quarter'!J72:L72,'DSS 2nd Quarter'!J72:L72,'DSS 3rd Quarter'!J72:L72,'DSS 4th Quarter'!J72:L72)","v":0}]
[null,null,null,null,"Stalking/Harassment",null,null,null,null,{"$f":"SUM('DSS 1st Quarter'!J73:L73,'DSS 2nd Quarter'!J73:L73,'DSS 3rd Quarter'!J73:L73,'DSS 4th Quarter'!J73:L73)","v":0}]
[null,null,null,null,"Survivors of Homicide Victims",null,null,null,null,{"$f":"SUM('DSS 1st Quarter'!J74:L74,'DSS 2nd Quarter'!J74:L74,'DSS 3rd Quarter'!J74:L74,'DSS 4th Quarter'!J74:L74)","v":0}]
[null,null,null,null,"Teen Dating Victimization",null,null,null,null,{"$f":"SUM('DSS 1st Quarter'!J75:L75,'DSS 2nd Quarter'!J75:L75,'DSS 3rd Quarter'!J75:L75,'DSS 4th Quarter'!J75:L75)","v":0}]
[null,null,null,null,"Terrorism (Domestic/International)",null,null,null,null,{"$f":"SUM('DSS 1st Quarter'!J76:L76,'DSS 2nd Quarter'!J76:L76,'DSS 3rd Quarter'!J76:L76,'DSS 4th Quarter'!J76:L76)","v":0}]
[null,null,null,null,"Violation of a Court (Protective) Order",null,null,null,null,{"$f":"SUM('DSS 1st Quarter'!J77:L77,'DSS 2nd Quarter'!J77:L77,'DSS 3rd Quarter'!J77:L77,'DSS 4th Quarter'!J77:L77)","v":0}]
[null,null,null,null,"Other (explain below)",null,null,null,null,{"$f":"SUM('DSS 1st Quarter'!J78:L78,'DSS 2nd Quarter'!J78:L78,'DSS 3rd Quarter'!J78:L78,'DSS 4th Quarter'!J78:L78)","v":0}]
[]
[]
[null,"B. Of the number of individuals receiving services, the number who presented with more than one type of victimization during the reporting period",null,null,null,null,null,null,null,{"$f":"SUM('DSS 1st Quarter'!J82:L82,'DSS 2nd Quarter'!J82:L82,'DSS 3rd Quarter'!J82:L82,'DSS 4th Quarter'!J82:L82)","v":0}]
[]
[null,"C. Special classification of individuals",null,null,"Deaf/Hard of Hearing",null,null,null,null,{"$f":"SUM('DSS 1st Quarter'!J84:L84,'DSS 2nd Quarter'!J84:L84,'DSS 3rd Quarter'!J84:L84,'DSS 4th Quarter'!J84:L84)","v":0}]
[null,null,null,null,"Homeless",null,null,null,null,{"$f":"SUM('DSS 1st Quarter'!J85:L85,'DSS 2nd Quarter'!J85:L85,'DSS 3rd Quarter'!J85:L85,'DSS 4th Quarter'!J85:L85)","v":0}]
[null,"(self-reported)",null,null,"Immigrants/Refugees/ Asylum Seekers",null,null,null,null,{"$f":"SUM('DSS 1st Quarter'!J86:L86,'DSS 2nd Quarter'!J86:L86,'DSS 3rd Quarter'!J86:L86,'DSS 4th Quarter'!J86:L86)","v":0}]
[null,null,null,null,"LGBTQ",null,null,null,null,{"$f":"SUM('DSS 1st Quarter'!J87:L87,'DSS 2nd Quarter'!J87:L87,'DSS 3rd Quarter'!J87:L87,'DSS 4th Quarter'!J87:L87)","v":0}]
[null,"INSTRUCTIONS: Enter the number of individuals who self-identify in one of these categories",null,null,"Veterans",null,null,null,null,{"$f":"SUM('DSS 1st Quarter'!J88:L88,'DSS 2nd Quarter'!J88:L88,'DSS 3rd Quarter'!J88:L88,'DSS 4th Quarter'!J88:L88)","v":0}]
[null,null,null,null,"Victim with Disabilities; Cognitive/Physical/ Mental",null,null,null,null,{"$f":"SUM('DSS 1st Quarter'!J89:L89,'DSS 2nd Quarter'!J89:L89,'DSS 3rd Quarter'!J89:L89,'DSS 4th Quarter'!J89:L89)","v":0}]
[null,null,null,null,"Victims with Limited English Proficiency",null,null,null,null,{"$f":"SUM('DSS 1st Quarter'!J90:L90,'DSS 2nd Quarter'!J90:L90,'DSS 3rd Quarter'!J90:L90,'DSS 4th Quarter'!J90:L90)","v":0}]
[null,null,null,null,"Other (explain below)",null,null,null,null,{"$f":"SUM('DSS 1st Quarter'!J91:L91,'DSS 2nd Quarter'!J91:L91,'DSS 3rd Quarter'!J91:L91,'DSS 4th Quarter'!J91:L91)","v":0}]
[]
[]
["DIRECT SERVICES"]
["6) ","Number of individuals assisted with a victim compensation application during the reporting period"]
[null,{"$f":"SUM('DSS 1st Quarter'!B96:C96,'DSS 2nd Quarter'!B96:C96,'DSS 3rd Quarter'!B96:C96,'DSS 4th Quarter'!B96:C96)","v":0}]
[]
["7) ","Select the types of services provided by your organization during the reporting period"]
[null,{"$f":"IF(OR('DSS 1st Quarter'!B100=\"Yes\",'DSS 2nd Quarter'!B100=\"Yes\",'DSS 3rd Quarter'!B100=\"Yes\",'DSS 4th Quarter'!B100=\"Yes\"), \"Yes\", \"No\" )","v":"No"},"A. Information and Referral"]
[null,{"$f":"IF(OR('DSS 1st Quarter'!B99=\"Yes\",'DSS 2nd Quarter'!B99=\"Yes\",'DSS 3rd Quarter'!B99=\"Yes\",'DSS 4th Quarter'!B99=\"Yes\"), \"Yes\", \"No\" )","v":"No"},"B. Personal Advocacy/Accompaniment"]
[null,{"$f":"IF(OR('DSS 1st Quarter'!B101=\"Yes\",'DSS 2nd Quarter'!B101=\"Yes\",'DSS 3rd Quarter'!B101=\"Yes\",'DSS 4th Quarter'!B101=\"Yes\"), \"Yes\", \"No\" )","v":"No"},"C. Emotional Support or Safety Services"]
[null,{"$f":"IF(OR('DSS 1st Quarter'!B102=\"Yes\",'DSS 2nd Quarter'!B102=\"Yes\",'DSS 3rd Quarter'!B102=\"Yes\",'DSS 4th Quarter'!B102=\"Yes\"), \"Yes\", \"No\" )","v":"No"},"D. Shelter/Housing Services"]
[null,{"$f":"IF(OR('DSS 1st Quarter'!B103=\"Yes\",'DSS 2nd Quarter'!B103=\"Yes\",'DSS 3rd Quarter'!B103=\"Yes\",'DSS 4th Quarter'!B103=\"Yes\"), \"Yes\", \"No\" )","v":"No"},"E. Criminal/Civil Justice System Assistance"]
[]
["8) ","Total number of individuals who received services and occurrence by service type during the reporting period"]
[null,"A. "," Information and Referral"]
[null,null,{"$f":"SUM('DSS 1st Quarter'!C107:D107,'DSS 2nd Quarter'!C107:D107,'DSS 3rd Quarter'!C107:D107,'DSS 4th Quarter'!C107:D107)","v":0}]
[null,null,"Enter the number of times a service was provided in each subcategory listed"]
[null,null,"A1."," Information about the criminal justice process"]
[null,null,null,{"$f":"SUM('DSS 1st Quarter'!D110,'DSS 2nd Quarter'!D110,'DSS 3rd Quarter'!D110,'DSS 4th Quarter'!D110)","v":0}]
[null,null,"A2.","Information about victim rights, how to obtain notifications, etc."]
[null,null,null,{"$f":"SUM('DSS 1st Quarter'!D112,'DSS 2nd Quarter'!D112,'DSS 3rd Quarter'!D112,'DSS 4th Quarter'!D112)","v":0}]
[null,null,"A3.","Referral to other victim service programs"]
[null,null,null,{"$f":"SUM('DSS 1st Quarter'!D114,'DSS 2nd Quarter'!D114,'DSS 3rd Quarter'!D114,'DSS 4th Quarter'!D114)","v":0}]
[null,null,"A4.","Referral to other services, supports, and resources"]
[null,null,null,"(includes legal, medical, faith-based organizations, address confidentiality programs, etc.)"]
[null,null,null,{"$f":"SUM('DSS 1st Quarter'!D117,'DSS 2nd Quarter'!D117,'DSS 3rd Quarter'!D117,'DSS 4th Quarter'!D117)","v":0}]
[null,"B. ","Personal Advocacy/Accompaniment"]
[null,null,{"$f":"SUM('DSS 1st Quarter'!C119:D119,'DSS 2nd Quarter'!C119:D119,'DSS 3rd Quarter'!C119:D119,'DSS 4th Quarter'!C119:D119)","v":0}]
[null,null,"Enter the number of times a service was provided in each subcategory listed"]
[null,null,"B1.","Victim advocacy/accompaniment to emergency medical care"]
[null,null,null,{"$f":"SUM('DSS 1st Quarter'!D122,'DSS 2nd Quarter'!D122,'DSS 3rd Quarter'!D122,'DSS 4th Quarter'!D122)","v":0}]
[null,null,"B2.","Victim advocacy/accompaniment to medical forensic exam"]
[null,null,null,{"$f":"SUM('DSS 1st Quarter'!D124,'DSS 2nd Quarter'!D124,'DSS 3rd Quarter'!D124,'DSS 4th Quarter'!D124)","v":0}]
[null,null,"B3.","Law enforcement interview advocacy/accompaniment"]
[null,null,null,{"$f":"SUM('DSS 1st Quarter'!D126,'DSS 2nd Quarter'!D126,'DSS 3rd Quarter'!D126,'DSS 4th Quarter'!D126)","v":0}]
[null,null,"B4.","Individual Advocacy  (assistance in applying for public benefits, return of personal property or effects)"]
[null,null,null,{"$f":"SUM('DSS 1st Quarter'!D128,'DSS 2nd Quarter'!D128,'DSS 3rd Quarter'!D128,'DSS 4th Quarter'!D128)","v":0}]
[null,null,"B5.","Performance of medical forensic exam or interview, or medical evidence collection"]
[null,null,null,{"$f":"SUM('DSS 1st Quarter'!D130,'DSS 2nd Quarter'!D130,'DSS 3rd Quarter'!D130,'DSS 4th Quarter'!D130)","v":0}]
[null,null,"B6.","Immigration assistance  (e.g., special visas, certified presence application, other immigration relief)"]
[null,null,null,{"$f":"SUM('DSS 1st Quarter'!D132,'DSS 2nd Quarter'!D132,'DSS 3rd Quarter'!D132,'DSS 4th Quarter'!D132)","v":0}]
[null,null,"B7.","Intervention with employer, creditor, landlord, or academic institution"]
[null,null,null,{"$f":"SUM('DSS 1st Quarter'!D134,'DSS 2nd Quarter'!D134,'DSS 3rd Quarter'!D134,'DSS 4th Quarter'!D134)","v":0}]
[null,null,"B8.","Child or dependent care assistance (provided by agency)"]
[null,null,null,{"$f":"SUM('DSS 1st Quarter'!D136,'DSS 2nd Quarter'!D136,'DSS 3rd Quarter'!D136,'DSS 4th Quarter'!D136:D136)","v":0}]
[null,null,"B9.","Transportation assistance (provided by agency)"]
[null,null,null,{"$f":"SUM('DSS 1st Quarter'!D138,'DSS 2nd Quarter'!D138,'DSS 3rd Quarter'!D138,'DSS 4th Quarter'!D138)","v":0}]
[null,null,"B10.","Interpreter services (provided by agency)"]
[null,null,null,{"$f":"SUM('DSS 1st Quarter'!D140,'DSS 2nd Quarter'!D140,'DSS 3rd Quarter'!D140,'DSS 4th Quarter'!D140)","v":0}]
[null,"C. ","Emotional Support or Safety Services"]
[null,null,{"$f":"SUM('DSS 1st Quarter'!C142:D142,'DSS 2nd Quarter'!C142:D142,'DSS 3rd Quarter'!C142:D142,'DSS 4th Quarter'!C142:D142)","v":0}]
[null,null,"Enter the number of times a service was provided in each subcategory listed"]
[null,null,"C1.","Crisis Intervention (in-person, includes safety planning, etc.)"]
[null,null,null,{"$f":"SUM('DSS 1st Quarter'!D145,'DSS 2nd Quarter'!D145,'DSS 3rd Quarter'!D145,'DSS 4th Quarter'!D145)","v":0}]
[null,null,"C2.","Hotline/crisis line counseling"]
[null,null,null,{"$f":"SUM('DSS 1st Quarter'!D147,'DSS 2nd Quarter'!D147,'DSS 3rd Quarter'!D147,'DSS 4th Quarter'!D147)","v":0}]
[null,null,"C3.","On-scene crisis response (e.g., community crisis response)"]
[null,null,null,{"$f":"SUM('DSS 1st Quarter'!D149,'DSS 2nd Quarter'!D149,'DSS 3rd Quarter'!D149,'DSS 4th Quarter'!D149)","v":0}]
[null,null,"C4.","Individual counseling"]
[null,null,null,{"$f":"SUM('DSS 1st Quarter'!D151,'DSS 2nd Quarter'!D151,'DSS 3rd Quarter'!D151,'DSS 4th Quarter'!D151)","v":0}]
[null,null,"C5.","Support groups  "]
[null,null,null,"(facilitated or peer)"]
[null,null,null,{"$f":"SUM('DSS 1st Quarter'!D154,'DSS 2nd Quarter'!D154,'DSS 3rd Quarter'!D154,'DSS 4th Quarter'!D154)","v":0}]
[null,null,"C6.","Other therapy"]
[null,null,null,{"$f":"SUM('DSS 1st Quarter'!D156,'DSS 2nd Quarter'!D156,'DSS 3rd Quarter'!D156,'DSS 4th Quarter'!D156)","v":0}]
[null,null,"C7.","Emergency financial assistance"]
[null,null,null,"(includes emergency loans and petty cash, payment for items such as food and/or clothing, changing windows"]
[null,null,null,"and/or locks, taxis, prophylactic and nonprophylactic meds, durable medical equipment, etc.)"]
[null,null,null,{"$f":"SUM('DSS 1st Quarter'!D160,'DSS 2nd Quarter'!D160,'DSS 3rd Quarter'!D160,'DSS 4th Quarter'!D160)","v":0}]
[]
[null,"D. ","Shelter/Housing Services"]
[null,null,{"$f":"SUM('DSS 1st Quarter'!C163:D163,'DSS 2nd Quarter'!C163:D163,'DSS 3rd Quarter'!C163:D163,'DSS 4th Quarter'!C163:D163)","v":0}]
[null,null,"Enter the number of times a service was provided in each subcategory listed"]
[null,null,"D1.","Emergency shelter or safe house"]
[null,null,null,{"$f":"SUM('DSS 1st Quarter'!D166,'DSS 2nd Quarter'!D166,'DSS 3rd Quarter'!D166,'DSS 4th Quarter'!D166)","v":0}]
[null,null,"D2.","Transitional housing"]
[null,null,null,{"$f":"SUM('DSS 1st Quarter'!D168,'DSS 2nd Quarter'!D168,'DSS 3rd Quarter'!D168,'DSS 4th Quarter'!D168)","v":0}]
[null,null,"D3.","Relocation assistance"]
[null,null,null,{"$f":"SUM('DSS 1st Quarter'!D170,'DSS 2nd Quarter'!D170,'DSS 3rd Quarter'!D170,'DSS 4th Quarter'!D170)","v":0}]
[null,"E. ","Criminal/Civil Justice System Assistance"]
[null,null,{"$f":"SUM('DSS 1st Quarter'!C173:D173,'DSS 2nd Quarter'!C173:D173,'DSS 3rd Quarter'!C173:D173,'DSS 4th Quarter'!C173:D173)","v":0}]
[null,null,"Enter the number of times a service was provided in each subcategory listed"]
[null,null,"E1.","Notification of criminal justice events"]
[null,null,null,"(e.g., case status, arrest, court proceedings, case disposition, release, etc.)"]
[null,null,null,{"$f":"SUM('DSS 1st Quarter'!D177,'DSS 2nd Quarter'!D177,'DSS 3rd Quarter'!D177,'DSS 4th Quarter'!D177)","v":0}]
[null,null,"E2.","Victim impact statement assistance"]
[null,null,null,{"$f":"SUM('DSS 1st Quarter'!D179,'DSS 2nd Quarter'!D179,'DSS 3rd Quarter'!D179,'DSS 4th Quarter'!D179)","v":0}]
[null,null,"E3.","Assistance with restitution"]
[null,null,null,"(includes assistance in requesting and when collection efforts are unsuccessful)"]
[null,null,null,{"$f":"SUM('DSS 1st Quarter'!D182,'DSS 2nd Quarter'!D182,'DSS 3rd Quarter'!D182,'DSS 4th Quarter'!D182)","v":0}]
[null,null,"E4.","Civil legal assistance in obtaining protection or restraining order"]
[null,null,null,{"$f":"SUM('DSS 1st Quarter'!D184,'DSS 2nd Quarter'!D184,'DSS 3rd Quarter'!D184,'DSS 4th Quarter'!D184)","v":0}]
[null,null,"E5.","Civil legal assistance with family law issues "]
[null,null,null,"(e.g., custody, visitation, or support)"]
[null,null,null,{"$f":"SUM('DSS 1st Quarter'!D187,'DSS 2nd Quarter'!D187,'DSS 3rd Quarter'!D187,'DSS 4th Quarter'!D187)","v":0}]
[null,null,"E6.","Other emergency justice-related assistance"]
[null,null,null,{"$f":"SUM('DSS 1st Quarter'!D190,'DSS 2nd Quarter'!D190,'DSS 3rd Quarter'!D190,'DSS 4th Quarter'!D190)","v":0}]
[null,null,"E7.","Immigration assistance"]
[null,null,null,"(e.g., special visas, continued presence application, and other immigration relief)"]
[null,null,null,{"$f":"SUM('DSS 1st Quarter'!D193,'DSS 2nd Quarter'!D193,'DSS 3rd Quarter'!D193,'DSS 4th Quarter'!D193)","v":0}]
[null,null,"E8.","Prosecution interview advocacy/accompaniment"]
[null,null,null,"(includes accompaniment with prosecuting attorney and with victim/witness)"]
[null,null,null,{"$f":"SUM('DSS 1st Quarter'!D196,'DSS 2nd Quarter'!D196,'DSS 3rd Quarter'!D196,'DSS 4th Quarter'!D196)","v":0}]
[null,null,"E9.","Law enforcement interview advocacy/accompaniment"]
[null,null,null,{"$f":"SUM('DSS 1st Quarter'!D198,'DSS 2nd Quarter'!D198,'DSS 3rd Quarter'!D198,'DSS 4th Quarter'!D198)","v":0}]
[null,null,"E10.","Criminal advocacy/accompaniment"]
[null,null,null,{"$f":"SUM('DSS 1st Quarter'!D200,'DSS 2nd Quarter'!D200,'DSS 3rd Quarter'!D200, 'DSS 4th Quarter'!D200)","v":0}]
[null,null,"E11.","Other legal advice and/or counsel"]
[null,null,null,"(includes victim advocate assisting with protection orders)"]
[null,null,null,{"$f":"SUM('DSS 1st Quarter'!D202,'DSS 2nd Quarter'!D202,'DSS 3rd Quarter'!D202,'DSS 4th Quarter'!D202)","v":0}]
[]
[]
[]
[]
["Signature of Authorized or Acting Authorized Official",null,null,null,null,null,null,null,null,"Date"]
[]
["Revised 11/14/2023"]
[]
[]
["Additional Comments within this reporting period  "]
["Agency used VOCA funds for XXX month and used ARPA funds for XX month. "]

{"sheet":"Annual Narrative Questions","index":5,"n_rows":57,"n_cols":10,"rows_kept":57,"cut":false,"hidden":false,"merged":[[40,1,51,11],[22,1,22,2],[53,0,53,7],[53,9,53,11],[1,0,1,3],[1,4,1,10],[3,0,3,1],[3,2,3,3],[3,5,3,6],[3,7,3,10],[17,1,17,11],[18,1,18,9],[19,1,19,2],[21,1,21,11],[38,1,38,12],[25,1,36,11],[24,1,24,11],[4,0,4,11],[6,1,6,11],[7,1,7,2],[9,1,11,11],[13,1,13,9],[56,0,56,1],[5,0,5,10],[8,2,8,11],[7,3,7,11],[12,1,12,11],[14,3,14,11],[16,1,16,11],[19,3,20,11],[20,0,20,2],[23,0,23,11],[22,3,22,11],[37,0,37,12],[39,0,39,11],[54,0,54,7],[54,9,54,11],[15,2,15,5]]}
[]
["Subgrant Organization Name:",null,null,null,{"$f":"'DSS 1st Quarter'!E2","v":0}]
[]
["Grant #:",null,{"$f":"'DSS 1st Quarter'!C4:D4","v":0},null,null,"Dates Reported:",null,"10/1-9/30"]
["SUBGRANTEE ANNUALLY REPORTED QUESTIONS"]
[]
["10) ","Number of requests for services that were unmet because of organizational capacity issues?"]
[]
[null,"explain:"]
[]
[]
[]
[]
["11) ","Does your organization formally survey clients for feedback on services requested?"]
[null,null,"YES"]
[null,null,"NO (go to question #14)"]
[]
["12) ","Number of surveys distributed?"]
[null,"(includes, but not limited to, those distributed by hand, mail, or electronic methods)"]
[]
[]
["13) ","Number of surveys completed?"]
[]
[]
["14) ","Discuss the challenges your victim assistance program faced during the course of the federal fiscal year."]
[]
[]
[]
[]
[]
[]
[]
[]
[]
[]
[]
[]
[]
["15) ","Describe some of the services that victims needed but could not be provided. What were the challenges that prevented those services from being provided?"]
[]
[]
[]
[]
[]
[]
[]
[]
[]
[]
[]
[]
[]
[]
[]
["Signature of Authorized or Acting Authorized Official",null,null,null,null,null,null,null,null,"Date"]
[]
["Revised 11/14/2023"]

{"sheet":"Appendix","index":6,"n_rows":1,"n_cols":1,"rows_kept":1,"cut":false,"hidden":false,"merged":[]}
["APPENDIX"]

{"sheet":"Values by Quarter","index":7,"n_rows":71,"n_cols":4,"rows_kept":71,"cut":false,"hidden":true,"merged":[[69,0,69,1],[69,2,69,3],[70,0,70,1],[70,2,70,3],[64,0,64,1],[64,2,64,3],[65,0,65,1],[65,2,65,3],[66,0,66,1],[66,2,66,3],[67,0,67,1],[67,2,67,3],[68,0,68,1],[68,2,68,3],[59,0,59,1],[59,2,59,3],[60,0,60,1],[60,2,60,3],[61,0,61,1],[61,2,61,3],[62,0,62,1],[62,2,62,3],[63,0,63,1],[63,2,63,3],[54,0,54,3],[55,0,55,1],[55,2,55,3],[56,0,56,1],[56,2,56,3],[57,0,57,1],[57,2,57,3],[58,0,58,1],[58,2,58,3],[46,2,46,3],[47,2,47,3],[48,2,48,3],[49,2,49,3],[50,2,50,3],[51,2,51,3],[52,2,52,3],[36,0,36,3],[37,0,37,1],[38,0,38,1],[39,0,39,1],[40,0,40,1],[41,0,41,1],[42,0,42,1],[43,0,43,1],[44,0,44,1],[45,0,45,1],[46,0,46,1],[47,0,47,1],[48,0,48,1],[49,0,49,1],[50,0,50,1],[51,0,51,1],[52,0,52,1],[37,2,37,3],[38,2,38,3],[39,2,39,3],[40,2,40,3],[41,2,41,3],[42,2,42,3],[43,2,43,3],[44,2,44,3],[45,2,45,3],[14,0,14,1],[15,0,15,1],[16,0,16,1],[6,0,6,1],[7,0,7,1],[8,0,8,1],[9,0,9,1],[10,0,10,1],[11,0,11,1],[6,2,6,3],[7,2,7,3],[8,2,8,3],[9,2,9,3],[12,0,12,1],[13,0,13,1],[1,0,1,1],[2,0,2,1],[3,0,3,1],[4,0,4,1],[5,0,5,1],[21,0,21,1],[21,2,21,3],[22,0,22,1],[22,2,22,3],[23,0,23,1],[23,2,23,3],[16,2,16,3],[0,0,0,3],[18,0,18,3],[19,0,19,1],[19,2,19,3],[20,0,20,1],[20,2,20,3],[10,2,10,3],[11,2,11,3],[12,2,12,3],[13,2,13,3],[14,2,14,3],[15,2,15,3],[1,2,1,3],[2,2,2,3],[3,2,3,3],[4,2,4,3],[5,2,5,3],[24,0,24,1],[24,2,24,3],[33,0,33,1],[33,2,33,3],[34,0,34,1],[34,2,34,3],[30,0,30,1],[30,2,30,3],[31,0,31,1],[31,2,31,3],[32,0,32,1],[32,2,32,3],[25,0,25,1],[25,2,25,3],[26,0,26,1],[26,2,26,3],[27,0,27,1],[27,2,27,3],[28,0,28,1],[28,2,28,3],[29,0,29,1],[29,2,29,3]]}
["1st Quarter"]
["Demographics: Race/Ethnicity",null,{"$f":"IF('DSS 1st Quarter'!$I$27='DSS 1st Quarter'!$B$13, \"GOOD\", \"Incorrect\")","v":"GOOD"},{"$f":"IF($B$13=#REF!, \"GOOD\", \"Incorrect\")","v":{"$error":"#REF!"}}]
["Demographics: Gender-Identity",null,{"$f":"IF('DSS 1st Quarter'!$I$35='DSS 1st Quarter'!$B$13,\"GOOD\", \"Incorrect\")","v":"GOOD"},{"$f":"IF($B$13=#REF!, \"GOOD\", \"Incorrect\")","v":{"$error":"#REF!"}}]
["Demographics: Age",null,{"$f":"IF('DSS 1st Quarter'!$I$44='DSS 1st Quarter'!$B$13, \"GOOD\",\"Incorrect\")","v":"GOOD"},{"$f":"IF($B$13=$I$43, \"GOOD\", \"Incorrect\")","v":"GOOD"}]
["Victimization",null,{"$f":"IF(SUM('DSS 1st Quarter'!$J$51:$L$64,'DSS 1st Quarter'!$J$66:$L$79)>='DSS 1st Quarter'!$K$46, \"GOOD\", \"Incorrect\")","v":"GOOD"},{"$f":"IF(SUM($J$51:$L$63,$J$65:$L$78)>=$K$45, \"GOOD\", \"Incorrect\")","v":"GOOD"}]
["Question 8",null,{"$f":"IF(SUM('DSS 1st Quarter'!$C$161,'DSS 1st Quarter'!$C$105,'DSS 1st Quarter'!$C$117,'DSS 1st Quarter'!$C$140,'DSS 1st Quarter'!$C$171)>='DSS 1st Quarter'!$P$104, \"GOOD\", \"Incorrect\")","v":"GOOD"},{"$f":"IF(SUM($C$161,$C$105,$C$117,$C$140,$C$171)>=$P$104, \"GOOD\", \"Incorrect\")","v":"GOOD"}]
["Question 8A",null,{"$f":"IF('DSS 1st Quarter'!$C$107:$D$107<='DSS 1st Quarter'!$J$107, \"GOOD\", \"Incorrect\")","v":"GOOD"},{"$f":"IF($C$105<=$J$106, \"GOOD\", \"Incorrect\")","v":"GOOD"}]
["A1-A4",null,{"$f":"IF(SUM('DSS 1st Quarter'!$D$110,'DSS 1st Quarter'!$D$112,'DSS 1st Quarter'!$D$114,'DSS 1st Quarter'!$D$117)>='DSS 1st Quarter'!$P$109, \"GOOD\", \"Incorrect\")","v":"GOOD"},{"$f":"IF(SUM($D$108,$D$110,$D$112,$D$115)>=$C$105, \"GOOD\", \"Incorrect\")","v":"GOOD"}]
["Question 8B",null,{"$f":"IF('DSS 1st Quarter'!$C$119:$D$119<='DSS 1st Quarter'!$J$119, \"GOOD\", \"Incorrect\")","v":"GOOD"},{"$f":"IF($C$117<=$J$118, \"GOOD\", \"Incorrect\")","v":"GOOD"}]
["B1-B",null,{"$f":"IF(SUM('DSS 1st Quarter'!$D$122,'DSS 1st Quarter'!$D$124,'DSS 1st Quarter'!$D$126,'DSS 1st Quarter'!$D$128,'DSS 1st Quarter'!$D$130,'DSS 1st Quarter'!$D$132,'DSS 1st Quarter'!$D$134,'DSS 1st Quarter'!$D$136,'DSS 1st Quarter'!$D$138,'DSS 1st Quarter'!$D$140)>='DSS 1st Quarter'!$P$121, \"GOOD\", \"Incorrect\")","v":"GOOD"},{"$f":"IF(SUM($D$138,$D$136,$D$134,$D$132,$D$130,$D$128,$D$126,$D$124,$D$122,$D$120)>=$C$117, \"GOOD\", \"Incorrect\")","v":"GOOD"}]
["Question 8C",null,{"$f":"IF('DSS 1st Quarter'!$C$142:$D$142<='DSS 1st Quarter'!$J$142, \"GOOD\", \"Incorrect\")","v":"GOOD"},{"$f":"IF($C$140<=$J$141, \"GOOD\", \"Incorrect\")","v":"GOOD"}]
["C1-C",null,{"$f":"IF(SUM('DSS 1st Quarter'!$D$145,'DSS 1st Quarter'!$D$147,'DSS 1st Quarter'!$D$149,'DSS 1st Quarter'!$D$151,'DSS 1st Quarter'!$D$154,'DSS 1st Quarter'!$D$156,'DSS 1st Quarter'!$D$160)>='DSS 1st Quarter'!$P$144, \"GOOD\", \"Incorrect\")","v":"GOOD"},{"$f":"IF(SUM($D$143,$D$145,$D$147,$D$149,$D$152,$D$154)>=$C$140, \"GOOD\", \"Incorrect\")","v":"GOOD"}]
["Question 8D",null,{"$f":"IF('DSS 1st Quarter'!$C$163:$D$163<='DSS 1st Quarter'!$J$163, \"GOOD\", \"Incorrect\")","v":"GOOD"},{"$f":"IF($C$161<=$J$162, \"GOOD\", \"Incorrect\")","v":"GOOD"}]
["D1-D",null,{"$f":"IF(SUM('DSS 1st Quarter'!$D$166,'DSS 1st Quarter'!$D$168,'DSS 1st Quarter'!$D$170)>='DSS 1st Quarter'!$P$165, \"GOOD\", \"Incorrect\")","v":"GOOD"},{"$f":"IF(SUM($D$164,$D$166,$D$168,$E$180)>=$C$161, \"GOOD\", \"Incorrect\")","v":"GOOD"}]
["Question 8E",null,{"$f":"IF('DSS 1st Quarter'!$C$173:$D$173<='DSS 1st Quarter'!$J$173, \"GOOD\", \"Incorrect\")","v":"GOOD"},{"$f":"IF($C$171<=$J$172, \"GOOD\", \"Incorrect\")","v":"GOOD"}]
["E1-E",null,{"$f":"IF(SUM('DSS 1st Quarter'!$D$177,'DSS 1st Quarter'!$D$179,'DSS 1st Quarter'!$D$182,'DSS 1st Quarter'!$D$184,'DSS 1st Quarter'!$D$187,'DSS 1st Quarter'!$D$190,'DSS 1st Quarter'!$D$193,'DSS 1st Quarter'!$D$196,'DSS 1st Quarter'!$D$198,'DSS 1st Quarter'!$D$200,'DSS 1st Quarter'!$D$202)>='DSS 1st Quarter'!$P$175, \"GOOD\", \"Incorrect\")","v":"GOOD"},{"$f":"IF(SUM($D$175,$D$177,$D$180,$D$182,$D$185,$D$188,$D$191,$D$194,$D$196,$D$198,$D$200)>=$C$171, \"GOOD\", \"Incorrect\")","v":"GOOD"}]
["Form Check Good?",null,{"$f":"IF(AND($C$2=\"GOOD\",C3=\"GOOD\",C4=\"GOOD\",C5=\"GOOD\",C6=\"GOOD\",C7=\"GOOD\",C8=\"GOOD\",C9=\"GOOD\",C10=\"GOOD\",C11=\"GOOD\",C12=\"GOOD\",C13=\"GOOD\",C14=\"GOOD\",C15=\"GOOD\",C16=\"GOOD\"),\"GOOD\",\"Incorrect\")","v":"GOOD"},{"$f":"IF(AND($Q$173=\"GOOD\",$Q$163=\"GOOD\",$Q$142=\"GOOD\",$Q$119=\"GOOD\",$Q$107=\"GOOD\",$K$106=\"GOOD\",$K$43=\"GOOD\",$G$34=\"GOOD\",$G$26=\"GOOD\",$Q$104=\"GOOD\",$M$45=\"GOOD\",$K$172=\"GOOD\",$K$162=\"GOOD\",$K$141=\"GOOD\",$K$118=\"GOOD\"),\"GOOD\",\"Incorrect\")","v":"Incorrect"}]
[]
["2nd Quarter"]
["Demographics: Race/Ethnicity",null,{"$f":"IF('DSS 2nd Quarter'!$I$27='DSS 2nd Quarter'!$B$13, \"GOOD\", \"Incorrect\")","v":"GOOD"},{"$f":"IF($B$13=#REF!, \"GOOD\", \"Incorrect\")","v":{"$error":"#REF!"}}]
["Demographics: Gender-Identity",null,{"$f":"IF('DSS 2nd Quarter'!$I$35='DSS 2nd Quarter'!$B$13,\"GOOD\", \"Incorrect\")","v":"GOOD"},{"$f":"IF($B$13=#REF!, \"GOOD\", \"Incorrect\")","v":{"$error":"#REF!"}}]
["Demographics: Age",null,{"$f":"IF('DSS 1st Quarter'!$I$44='DSS 1st Quarter'!$B$13, \"GOOD\",\"Incorrect\")","v":"GOOD"},{"$f":"IF($B$13=$I$43, \"GOOD\", \"Incorrect\")","v":"GOOD"}]
["Victimization",null,{"$f":"IF(SUM('DSS 2nd Quarter'!$J$51:$L$64,'DSS 2nd Quarter'!$J$66:$L$79)>='DSS 2nd Quarter'!$K$46, \"GOOD\", \"Incorrect\")","v":"GOOD"},{"$f":"IF(SUM($J$51:$L$63,$J$65:$L$78)>=$K$45, \"GOOD\", \"Incorrect\")","v":"GOOD"}]
["Question 8",null,{"$f":"IF(SUM('DSS 2nd Quarter'!$C$161,'DSS 2nd Quarter'!$C$105,'DSS 2nd Quarter'!$C$117,'DSS 2nd Quarter'!$C$140,'DSS 2nd Quarter'!$C$171)>='DSS 2nd Quarter'!$P$104, \"GOOD\", \"Incorrect\")","v":"GOOD"},{"$f":"IF(SUM($C$161,$C$105,$C$117,$C$140,$C$171)>=$P$104, \"GOOD\", \"Incorrect\")","v":"GOOD"}]
["Question 8A",null,{"$f":"IF('DSS 2nd Quarter'!$C$107:$D$107<='DSS 2nd Quarter'!$J$107, \"GOOD\", \"Incorrect\")","v":"GOOD"},{"$f":"IF($C$105<=$J$106, \"GOOD\", \"Incorrect\")","v":"GOOD"}]
["A1-A4",null,{"$f":"IF(SUM('DSS 2nd Quarter'!$D$110,'DSS 2nd Quarter'!$D$112,'DSS 2nd Quarter'!$D$114,'DSS 2nd Quarter'!$D$117)>='DSS 2nd Quarter'!$P$109, \"GOOD\", \"Incorrect\")","v":"GOOD"},{"$f":"IF(SUM($D$108,$D$110,$D$112,$D$115)>=$C$105, \"GOOD\", \"Incorrect\")","v":"GOOD"}]
["Question 8B",null,{"$f":"IF('DSS 2nd Quarter'!$C$119:$D$119<='DSS 2nd Quarter'!$J$119, \"GOOD\", \"Incorrect\")","v":"GOOD"},{"$f":"IF($C$117<=$J$118, \"GOOD\", \"Incorrect\")","v":"GOOD"}]
["B1-B",null,{"$f":"IF(SUM('DSS 2nd Quarter'!$D$122,'DSS 2nd Quarter'!$D$124,'DSS 2nd Quarter'!$D$126,'DSS 2nd Quarter'!$D$128,'DSS 2nd Quarter'!$D$130,'DSS 2nd Quarter'!$D$132,'DSS 2nd Quarter'!$D$134,'DSS 2nd Quarter'!$D$136,'DSS 2nd Quarter'!$D$138,'DSS 2nd Quarter'!$D$140)>='DSS 2nd Quarter'!$P$121, \"GOOD\", \"Incorrect\")","v":"GOOD"},{"$f":"IF(SUM($D$138,$D$136,$D$134,$D$132,$D$130,$D$128,$D$126,$D$124,$D$122,$D$120)>=$C$117, \"GOOD\", \"Incorrect\")","v":"GOOD"}]
["Question 8C",null,{"$f":"IF('DSS 2nd Quarter'!$C$142:$D$142<='DSS 2nd Quarter'!$J$142, \"GOOD\", \"Incorrect\")","v":"GOOD"},{"$f":"IF($C$140<=$J$141, \"GOOD\", \"Incorrect\")","v":"GOOD"}]
["C1-C",null,{"$f":"IF(SUM('DSS 2nd Quarter'!$D$145,'DSS 2nd Quarter'!$D$147,'DSS 2nd Quarter'!$D$149,'DSS 2nd Quarter'!$D$151,'DSS 2nd Quarter'!$D$154,'DSS 2nd Quarter'!$D$156,'DSS 2nd Quarter'!$D$160)>='DSS 2nd Quarter'!$P$144, \"GOOD\", \"Incorrect\")","v":"GOOD"},{"$f":"IF(SUM($D$143,$D$145,$D$147,$D$149,$D$152,$D$154)>=$C$140, \"GOOD\", \"Incorrect\")","v":"GOOD"}]
["Question 8D",null,{"$f":"IF('DSS 2nd Quarter'!$C$163:$D$163<='DSS 2nd Quarter'!$J$163, \"GOOD\", \"Incorrect\")","v":"GOOD"},{"$f":"IF($C$161<=$J$162, \"GOOD\", \"Incorrect\")","v":"GOOD"}]
["D1-D",null,{"$f":"IF(SUM('DSS 2nd Quarter'!$D$166,'DSS 2nd Quarter'!$D$168,'DSS 2nd Quarter'!$D$170)>='DSS 2nd Quarter'!$P$165, \"GOOD\", \"Incorrect\")","v":"GOOD"},{"$f":"IF(SUM($D$164,$D$166,$D$168,$E$180)>=$C$161, \"GOOD\", \"Incorrect\")","v":"GOOD"}]
["Question 8E",null,{"$f":"IF('DSS 2nd Quarter'!$C$173:$D$173<='DSS 2nd Quarter'!$J$173, \"GOOD\", \"Incorrect\")","v":"GOOD"},{"$f":"IF($C$171<=$J$172, \"GOOD\", \"Incorrect\")","v":"GOOD"}]
["E1-E",null,{"$f":"IF(SUM('DSS 2nd Quarter'!$D$177,'DSS 2nd Quarter'!$D$179,'DSS 2nd Quarter'!$D$182,'DSS 2nd Quarter'!$D$184,'DSS 2nd Quarter'!$D$187,'DSS 2nd Quarter'!$D$190,'DSS 2nd Quarter'!$D$193,'DSS 2nd Quarter'!$D$196,'DSS 2nd Quarter'!$D$198,'DSS 2nd Quarter'!$D$200,'DSS 2nd Quarter'!$D$202)>='DSS 2nd Quarter'!$P$175, \"GOOD\", \"Incorrect\")","v":"GOOD"},{"$f":"IF(SUM($D$175,$D$177,$D$180,$D$182,$D$185,$D$188,$D$191,$D$194,$D$196,$D$198,$D$200)>=$C$171, \"GOOD\", \"Incorrect\")","v":"GOOD"}]
["Form Check Good?",null,{"$f":"IF(AND($C$20=\"GOOD\",C21=\"GOOD\",C22=\"GOOD\",C23=\"GOOD\",C24=\"GOOD\",C25=\"GOOD\",C26=\"GOOD\",C27=\"GOOD\",C28=\"GOOD\",C29=\"GOOD\",C30=\"GOOD\",C31=\"GOOD\",C32=\"GOOD\",C33=\"GOOD\",C34=\"GOOD\"),\"GOOD\",\"Incorrect\")","v":"GOOD"},{"$f":"IF(AND($Q$173=\"GOOD\",$Q$163=\"GOOD\",$Q$142=\"GOOD\",$Q$119=\"GOOD\",$Q$107=\"GOOD\",$K$106=\"GOOD\",$K$43=\"GOOD\",$G$34=\"GOOD\",$G$26=\"GOOD\",$Q$104=\"GOOD\",$M$45=\"GOOD\",$K$172=\"GOOD\",$K$162=\"GOOD\",$K$141=\"GOOD\",$K$118=\"GOOD\"),\"GOOD\",\"Incorrect\")","v":"Incorrect"}]
[]
["3rd Quarter"]
["Demographics: Race/Ethnicity",null,{"$f":"IF('DSS 3rd Quarter'!$I$27='DSS 3rd Quarter'!$B$13, \"GOOD\", \"Incorrect\")","v":"GOOD"},{"$f":"IF($B$13=#REF!, \"GOOD\", \"Incorrect\")","v":{"$error":"#REF!"}}]
["Demographics: Gender-Identity",null,{"$f":"IF('DSS 3rd Quarter'!$I$35='DSS 3rd Quarter'!$B$13,\"GOOD\", \"Incorrect\")","v":"GOOD"},{"$f":"IF($B$13=#REF!, \"GOOD\", \"Incorrect\")","v":{"$error":"#REF!"}}]
["Demographics: Age",null,{"$f":"IF('DSS 3rd Quarter'!$I$44='DSS 3rd Quarter'!$B$13, \"GOOD\",\"Incorrect\")","v":"GOOD"},{"$f":"IF($B$13=$I$43, \"GOOD\", \"Incorrect\")","v":"GOOD"}]
["Victimization",null,{"$f":"IF(SUM('DSS 3rd Quarter'!$J$51:$L$64,'DSS 3rd Quarter'!$J$66:$L$79)>='DSS 3rd Quarter'!$K$46, \"GOOD\", \"Incorrect\")","v":"GOOD"},{"$f":"IF(SUM($J$51:$L$63,$J$65:$L$78)>=$K$45, \"GOOD\", \"Incorrect\")","v":"GOOD"}]
["Question 8",null,{"$f":"IF(SUM('DSS 3rd Quarter'!$C$161,'DSS 3rd Quarter'!$C$105,'DSS 3rd Quarter'!$C$117,'DSS 3rd Quarter'!$C$140,'DSS 3rd Quarter'!$C$171)>='DSS 3rd Quarter'!$P$104, \"GOOD\", \"Incorrect\")","v":"GOOD"},{"$f":"IF(SUM($C$161,$C$105,$C$117,$C$140,$C$171)>=$P$104, \"GOOD\", \"Incorrect\")","v":"GOOD"}]
["Question 8A",null,{"$f":"IF('DSS 3rd Quarter'!$C$107:$D$107<='DSS 3rd Quarter'!$J$107, \"GOOD\", \"Incorrect\")","v":"GOOD"},{"$f":"IF($C$105<=$J$106, \"GOOD\", \"Incorrect\")","v":"GOOD"}]
["A1-A4",null,{"$f":"IF(SUM('DSS 3rd Quarter'!$D$110,'DSS 3rd Quarter'!$D$112,'DSS 3rd Quarter'!$D$114,'DSS 3rd Quarter'!$D$117)>='DSS 3rd Quarter'!$P$109, \"GOOD\", \"Incorrect\")","v":"GOOD"},{"$f":"IF(SUM($D$108,$D$110,$D$112,$D$115)>=$C$105, \"GOOD\", \"Incorrect\")","v":"GOOD"}]
["Question 8B",null,{"$f":"IF('DSS 3rd Quarter'!$C$119:$D$119<='DSS 3rd Quarter'!$J$119, \"GOOD\", \"Incorrect\")","v":"GOOD"},{"$f":"IF($C$117<=$J$118, \"GOOD\", \"Incorrect\")","v":"GOOD"}]
["B1-B",null,{"$f":"IF(SUM('DSS 3rd Quarter'!$D$122,'DSS 3rd Quarter'!$D$124,'DSS 3rd Quarter'!$D$126,'DSS 3rd Quarter'!$D$128,'DSS 3rd Quarter'!$D$130,'DSS 3rd Quarter'!$D$132,'DSS 3rd Quarter'!$D$134,'DSS 3rd Quarter'!$D$136,'DSS 3rd Quarter'!$D$138,'DSS 3rd Quarter'!$D$140)>='DSS 3rd Quarter'!$P$121, \"GOOD\", \"Incorrect\")","v":"GOOD"},{"$f":"IF(SUM($D$138,$D$136,$D$134,$D$132,$D$130,$D$128,$D$126,$D$124,$D$122,$D$120)>=$C$117, \"GOOD\", \"Incorrect\")","v":"GOOD"}]
["Question 8C",null,{"$f":"IF('DSS 3rd Quarter'!$C$142:$D$142<='DSS 3rd Quarter'!$J$142, \"GOOD\", \"Incorrect\")","v":"GOOD"},{"$f":"IF($C$140<=$J$141, \"GOOD\", \"Incorrect\")","v":"GOOD"}]
["C1-C",null,{"$f":"IF(SUM('DSS 3rd Quarter'!$D$145,'DSS 3rd Quarter'!$D$147,'DSS 3rd Quarter'!$D$149,'DSS 3rd Quarter'!$D$151,'DSS 3rd Quarter'!$D$154,'DSS 3rd Quarter'!$D$156,'DSS 3rd Quarter'!$D$160)>='DSS 3rd Quarter'!$P$144, \"GOOD\", \"Incorrect\")","v":"GOOD"},{"$f":"IF(SUM($D$143,$D$145,$D$147,$D$149,$D$152,$D$154)>=$C$140, \"GOOD\", \"Incorrect\")","v":"GOOD"}]
["Question 8D",null,{"$f":"IF('DSS 3rd Quarter'!$C$163:$D$163<='DSS 3rd Quarter'!$J$163, \"GOOD\", \"Incorrect\")","v":"GOOD"},{"$f":"IF($C$161<=$J$162, \"GOOD\", \"Incorrect\")","v":"GOOD"}]
["D1-D",null,{"$f":"IF(SUM('DSS 3rd Quarter'!$D$166,'DSS 3rd Quarter'!$D$168,'DSS 3rd Quarter'!$D$170)>='DSS 3rd Quarter'!$P$165, \"GOOD\", \"Incorrect\")","v":"GOOD"},{"$f":"IF(SUM($D$164,$D$166,$D$168,$E$180)>=$C$161, \"GOOD\", \"Incorrect\")","v":"GOOD"}]
["Question 8E",null,{"$f":"IF('DSS 3rd Quarter'!$C$173:$D$173<='DSS 3rd Quarter'!$J$173, \"GOOD\", \"Incorrect\")","v":"GOOD"},{"$f":"IF($C$171<=$J$172, \"GOOD\", \"Incorrect\")","v":"GOOD"}]
["E1-E",null,{"$f":"IF(SUM('DSS 3rd Quarter'!$D$177,'DSS 3rd Quarter'!$D$179,'DSS 3rd Quarter'!$D$182,'DSS 3rd Quarter'!$D$184,'DSS 3rd Quarter'!$D$187,'DSS 3rd Quarter'!$D$190,'DSS 3rd Quarter'!$D$193,'DSS 3rd Quarter'!$D$196,'DSS 3rd Quarter'!$D$198,'DSS 3rd Quarter'!$D$200,'DSS 3rd Quarter'!$D$202)>='DSS 3rd Quarter'!$P$175, \"GOOD\", \"Incorrect\")","v":"GOOD"},{"$f":"IF(SUM($D$175,$D$177,$D$180,$D$182,$D$185,$D$188,$D$191,$D$194,$D$196,$D$198,$D$200)>=$C$171, \"GOOD\", \"Incorrect\")","v":"GOOD"}]
["Form Check Good?",null,{"$f":"IF(AND($C$38=\"GOOD\",C39=\"GOOD\",C40=\"GOOD\",C41=\"GOOD\",C42=\"GOOD\",C43=\"GOOD\",C44=\"GOOD\",C45=\"GOOD\",C46=\"GOOD\",C47=\"GOOD\",C48=\"GOOD\",C49=\"GOOD\",C50=\"GOOD\",C51=\"GOOD\",C52=\"GOOD\"),\"GOOD\",\"Incorrect\")","v":"GOOD"},{"$f":"IF(AND($Q$173=\"GOOD\",$Q$163=\"GOOD\",$Q$142=\"GOOD\",$Q$119=\"GOOD\",$Q$107=\"GOOD\",$K$106=\"GOOD\",$K$43=\"GOOD\",$G$34=\"GOOD\",$G$26=\"GOOD\",$Q$104=\"GOOD\",$M$45=\"GOOD\",$K$172=\"GOOD\",$K$162=\"GOOD\",$K$141=\"GOOD\",$K$118=\"GOOD\"),\"GOOD\",\"Incorrect\")","v":"Incorrect"}]
[]
["4th Quarter"]
["Demographics: Race/Ethnicity",null,{"$f":"IF('DSS 4th Quarter'!$I$27='DSS 4th Quarter'!$B$13, \"GOOD\", \"Incorrect\")","v":"GOOD"},{"$f":"IF($B$13=#REF!, \"GOOD\", \"Incorrect\")","v":{"$error":"#REF!"}}]
["Demographics: Gender-Identity",null,{"$f":"IF('DSS 4th Quarter'!$I$35='DSS 4th Quarter'!$B$13,\"GOOD\", \"Incorrect\")","v":"GOOD"},{"$f":"IF($B$13=#REF!, \"GOOD\", \"Incorrect\")","v":{"$error":"#REF!"}}]
["Demographics: Age",null,{"$f":"IF('DSS 4th Quarter'!$I$44='DSS 4th Quarter'!$B$13, \"GOOD\",\"Incorrect\")","v":"GOOD"},{"$f":"IF($B$13=$I$43, \"GOOD\", \"Incorrect\")","v":"GOOD"}]
["Victimization",null,{"$f":"IF(SUM('DSS 4th Quarter'!$J$51:$L$64,'DSS 4th Quarter'!$J$66:$L$79)>='DSS 4th Quarter'!$K$46, \"GOOD\", \"Incorrect\")","v":"GOOD"},{"$f":"IF(SUM($J$51:$L$63,$J$65:$L$78)>=$K$45, \"GOOD\", \"Incorrect\")","v":"GOOD"}]
["Question 8",null,{"$f":"IF(SUM('DSS 4th Quarter'!$C$161,'DSS 4th Quarter'!$C$105,'DSS 4th Quarter'!$C$117,'DSS 4th Quarter'!$C$140,'DSS 4th Quarter'!$C$171)>='DSS 4th Quarter'!$P$104, \"GOOD\", \"Incorrect\")","v":"GOOD"},{"$f":"IF(SUM($C$161,$C$105,$C$117,$C$140,$C$171)>=$P$104, \"GOOD\", \"Incorrect\")","v":"GOOD"}]
["Question 8A",null,{"$f":"IF('DSS 4th Quarter'!$C$107:$D$107<='DSS 4th Quarter'!$J$107, \"GOOD\", \"Incorrect\")","v":"GOOD"},{"$f":"IF($C$105<=$J$106, \"GOOD\", \"Incorrect\")","v":"GOOD"}]
["A1-A4",null,{"$f":"IF(SUM('DSS 4th Quarter'!$D$110,'DSS 4th Quarter'!$D$112,'DSS 4th Quarter'!$D$114,'DSS 4th Quarter'!$D$117)>='DSS 4th Quarter'!$P$109, \"GOOD\", \"Incorrect\")","v":"GOOD"},{"$f":"IF(SUM($D$108,$D$110,$D$112,$D$115)>=$C$105, \"GOOD\", \"Incorrect\")","v":"GOOD"}]
["Question 8B",null,{"$f":"IF('DSS 4th Quarter'!$C$119:$D$119<='DSS 4th Quarter'!$J$119, \"GOOD\", \"Incorrect\")","v":"GOOD"},{"$f":"IF($C$117<=$J$118, \"GOOD\", \"Incorrect\")","v":"GOOD"}]
["B1-B",null,{"$f":"IF(SUM('DSS 4th Quarter'!$D$122,'DSS 4th Quarter'!$D$124,'DSS 4th Quarter'!$D$126,'DSS 4th Quarter'!$D$128,'DSS 4th Quarter'!$D$130,'DSS 4th Quarter'!$D$132,'DSS 4th Quarter'!$D$134,'DSS 4th Quarter'!$D$136,'DSS 4th Quarter'!$D$138,'DSS 4th Quarter'!$D$140)>='DSS 4th Quarter'!$P$121, \"GOOD\", \"Incorrect\")","v":"GOOD"},{"$f":"IF(SUM($D$138,$D$136,$D$134,$D$132,$D$130,$D$128,$D$126,$D$124,$D$122,$D$120)>=$C$117, \"GOOD\", \"Incorrect\")","v":"GOOD"}]
["Question 8C",null,{"$f":"IF('DSS 4th Quarter'!$C$142:$D$142<='DSS 4th Quarter'!$J$142, \"GOOD\", \"Incorrect\")","v":"GOOD"},{"$f":"IF($C$140<=$J$141, \"GOOD\", \"Incorrect\")","v":"GOOD"}]
["C1-C",null,{"$f":"IF(SUM('DSS 4th Quarter'!$D$145,'DSS 4th Quarter'!$D$147,'DSS 4th Quarter'!$D$149,'DSS 4th Quarter'!$D$151,'DSS 4th Quarter'!$D$154,'DSS 4th Quarter'!$D$156,'DSS 4th Quarter'!$D$160)>='DSS 4th Quarter'!$P$144, \"GOOD\", \"Incorrect\")","v":"GOOD"},{"$f":"IF(SUM($D$143,$D$145,$D$147,$D$149,$D$152,$D$154)>=$C$140, \"GOOD\", \"Incorrect\")","v":"GOOD"}]
["Question 8D",null,{"$f":"IF('DSS 4th Quarter'!$C$163:$D$163<='DSS 4th Quarter'!$J$163, \"GOOD\", \"Incorrect\")","v":"GOOD"},{"$f":"IF($C$161<=$J$162, \"GOOD\", \"Incorrect\")","v":"GOOD"}]
["D1-D",null,{"$f":"IF(SUM('DSS 4th Quarter'!$D$166,'DSS 4th Quarter'!$D$168,'DSS 4th Quarter'!$D$170)>='DSS 4th Quarter'!$P$165, \"GOOD\", \"Incorrect\")","v":"GOOD"},{"$f":"IF(SUM($D$164,$D$166,$D$168,$E$180)>=$C$161, \"GOOD\", \"Incorrect\")","v":"GOOD"}]
["Question 8E",null,{"$f":"IF('DSS 4th Quarter'!$C$173:$D$173<='DSS 4th Quarter'!$J$173, \"GOOD\", \"Incorrect\")","v":"GOOD"},{"$f":"IF($C$171<=$J$172, \"GOOD\", \"Incorrect\")","v":"GOOD"}]
["E1-E",null,{"$f":"IF(SUM('DSS 4th Quarter'!$D$177,'DSS 4th Quarter'!$D$179,'DSS 4th Quarter'!$D$182,'DSS 4th Quarter'!$D$184,'DSS 4th Quarter'!$D$187,'DSS 4th Quarter'!$D$190,'DSS 4th Quarter'!$D$193,'DSS 4th Quarter'!$D$196,'DSS 4th Quarter'!$D$198,'DSS 4th Quarter'!$D$200,'DSS 4th Quarter'!$D$202)>='DSS 4th Quarter'!$P$175, \"GOOD\", \"Incorrect\")","v":"GOOD"},{"$f":"IF(SUM($D$175,$D$177,$D$180,$D$182,$D$185,$D$188,$D$191,$D$194,$D$196,$D$198,$D$200)>=$C$171, \"GOOD\", \"Incorrect\")","v":"GOOD"}]
["Form Check Good?",null,{"$f":"IF(AND($C$56=\"GOOD\",C57=\"GOOD\",C58=\"GOOD\",C59=\"GOOD\",C60=\"GOOD\",C61=\"GOOD\",C62=\"GOOD\",C63=\"GOOD\",C64=\"GOOD\",C65=\"GOOD\",C66=\"GOOD\",C67=\"GOOD\",C68=\"GOOD\",C69=\"GOOD\",C70=\"GOOD\"),\"GOOD\",\"Incorrect\")","v":"GOOD"},{"$f":"IF(AND($Q$173=\"GOOD\",$Q$163=\"GOOD\",$Q$142=\"GOOD\",$Q$119=\"GOOD\",$Q$107=\"GOOD\",$K$106=\"GOOD\",$K$43=\"GOOD\",$G$34=\"GOOD\",$G$26=\"GOOD\",$Q$104=\"GOOD\",$M$45=\"GOOD\",$K$172=\"GOOD\",$K$162=\"GOOD\",$K$141=\"GOOD\",$K$118=\"GOOD\"),\"GOOD\",\"Incorrect\")","v":"Incorrect"}]